Workbook

Sheet Instructions
A1: Start page | C1: =CONCATENATE(Title, " ", Version) -> COMSCC 2024 v12.0
A3: All drivers must submit a completed sheet.
A7: All dyno sheets must be no more than 3 years old, and are expected to represent the car as it is today
A9: A Dyno sheet is not required in Touring classes. GENERALLY speaking, the more modifications you have, you may benefit from using a dyno sheet instead of adding up your modifications and assigning points for each. But if your car's HP/TQ is overstated by the manufacturer, you may also benefit by dyno testing your stock-ish engine as well. It's up to you to decide.
B17: Start on the "Summary" Tab, and step through from there to complete your sheet
A20: The sheet was built in Excel, and works best in Excel. Using it in Google sheets or anything else may result in some of the cool automatic functions not working for you. We've had some really smart people try to find a way to make it work in alternate Applications. If you would like to give it a try contact the Chief Steward and he'll be happy to let you have a crack at it.
A23: Please save your downloaded, completed sheet with the title in this format:
B25: Class_carnumber_lastname_firstname_additional information
B27: Example: | D27: T50_12_Giurlando_Paul_Wet.xlxs
B29: Yes, you may submit multiple configurations of the same car. You are responsible for declaring to a Steward which sheet you are using the morning of the TT, if it's not obvious due to weather, or risk disqualification. You may also choose to "run up" a class. Please name your file with the class you wish to compete in
A38: Please email your completed sheet to | F38: rules@comscc.org

Sheet Summary
A1: =CONCATENATE(Title, " ", Version) -> COMSCC 2024 v12.0
A3: Homepage | B3: v12.0 | C3: COMSCC 2024
A5: IMPORTANT- THIS SHEET FOR TOURING CLASSIFICATIONS ONLY - For Super Class cars, please see the separate "Super" Spreadsheet
A7: 1. Select your Car from the Showroom Assessment List ("Vehicles" tab below)
A8: 2. Use the Worksheets (tabs below) to enter modifications, to determine the Modification Assessment for your vehicle
A9: 3. Note - do not attempt to edit any cells on this page, all values will auto-populate from other fields and sheets.
A11: Showroom Assessment | B11: Go to Car List
A12: Make | B12: =IF(ISBLANK(INDEX(Selected_Vehicle,1)), "Select a car", INDEX(Selected_Vehicle,1)) -> 
A13: Model | B13: =IF(ISBLANK(INDEX(Selected_Vehicle,2)), "from list", INDEX(Selected_Vehicle,2)) -> 
A14: Factory Rated Crank HP | B14: =IF(ISBLANK(INDEX(Selected_Vehicle,6)), "", INDEX(Selected_Vehicle,6)) -> 
A15: Factory Rated Torque | B15: =IF(ISBLANK(INDEX(Selected_Vehicle,7)), "", INDEX(Selected_Vehicle,7)) -> 
A16: Showroom Base Weight | B16: =IF(ISBLANK(INDEX(Selected_Vehicle,5)), "", INDEX(Selected_Vehicle,5)) ->  | E16: =IF(Is_Safety_upgrade, "Highly Modified Touring Safety Requirements", "") -> 
A17: Showroom Assessment Points | B17: =Car_Base_Points ->  | E17: =IF(Is_Safety_upgrade, INDEX(Safety_Rules,1), "") -> 
A18: Touring Class Base Classification | B18: =Car_Base_Class ->  | E18: =IF(Is_Safety_upgrade, INDEX(Safety_Rules,2), "") -> 
E19: =IF(Is_Safety_upgrade, INDEX(Safety_Rules,3), "") -> 
A20: Category | B20: Assessment | E20: =IF(Is_Safety_upgrade, INDEX(Safety_Rules,4), "") -> 
A21: Engine | B21: =Total_Engine -> 0 | C21: Go to Engine Worksheet | E21: =IF(Is_Safety_upgrade, INDEX(Safety_Rules,5), "") -> 
A22: Drivetrain | B22: =Total_Drivetrain -> 0 | C22: Go to Drivetrain Worksheet | E22: =IF(Is_Safety_upgrade, INDEX(Safety_Rules,6), "") -> 
A23: Suspension | B23: =Total_Suspension -> 0 | C23: Go to Suspension Worksheet | E23: =IF(Is_Safety_upgrade, INDEX(Safety_Rules,7), "") -> 
A24: Brakes | B24: =Total_Brakes -> 0 | C24: Go to Brakes Worksheet | E24: =IF(Is_Safety_upgrade, INDEX(Safety_Rules,8), "") -> 
A25: Exterior | B25: =Total_Exterior -> 0 | C25: Go to Exterior Worksheet | E25: =IF(Is_Safety_upgrade, INDEX(Safety_Rules,9), "") -> 
A26: Weight Reduction | B26: =Total_Weight -> Enter Weight | C26: Go to Weight Reduction Worksheet | E26: =IF(Is_Safety_upgrade, INDEX(Safety_Rules,10), "") -> 
A27: Tires | B27: =Total_Tire -> No Tire | C27: Go to Tire Worksheet | E27: =IF(Is_Safety_upgrade, INDEX(Safety_Rules,11), "") -> 
A28: Total | B28: =SUM(Assessments) -> 0 | E28: =IF(Is_Safety_upgrade, INDEX(Safety_Rules,12), "") -> 
A29: =IF(Safety_mods,"Safety Upgrades Required for vehicles with 31+ modification points",IF(Safety_Engine,"Safety Upgrades Required for vehicles with 16+ engine modification points","")) ->  | E29: =IF(Is_Safety_upgrade, INDEX(Safety_Rules,13), "") -> 
A30: =IF(Competition_class="T110","Note: The Classification says T110 to make the sheet work; your class is actually TU","") ->  | E30: =IF(Is_Safety_upgrade, INDEX(Safety_Rules,14), "") -> 
A31: Total Assessment | B31: =IF(ISNUMBER(Showroom_Assessment_Points), Showroom_Assessment_Points+Points_Assessment-0.0499999999999, "No Vehicle") -> No Vehicle | E31: =IF(Is_Safety_upgrade, INDEX(Safety_Rules,15), "") -> 
A32: Tire Class Selected | B32: =Tire_Competition_Class -> 0 | E32: =IF(Is_Safety_upgrade, INDEX(Safety_Rules,15), "") -> 
A33: Classification | B33: =Class_max -> Tire Class Not Set | F33: =IF(ISNUMBER(Total_Assessment),INDEX(Base_Classes, MATCH(Total_Assessment, Base_Assessments, 1)+1), "") ->  | G33: =Tire_Competition_Class -> 0 | H33: =IF(ISBLANK(Tire_Competition_Class), "Tire Class Not Set", IF(VALUE(MID(ClassificationTire,2,3))>VALUE(MID(Classification,2,3)),CONCATENATE(ClassificationTire," (tire sheet)"),Classification)) -> Tire Class Not Set
A35: Safety upgrades required (engine)? | B35: =IF(ISNUMBER(Total_Assessment), Total_Engine>=16, FALSE) -> FALSE
A36: Safety upgrades required? | B36: =IF(ISNUMBER(Total_Assessment), Points_Assessment>=31, FALSE) -> FALSE
B37: =OR(B35, B36) -> FALSE
A38: Base Assessment | B38: Base Class
A39: -10000 | B39: T0
A40: 39.95 | B40: T30
A41: 49.95 | B41: T40
A42: 59.95 | B42: T50
A43: 69.95 | B43: T60
A44: 79.95 | B44: T70
A45: 89.95 | B45: T80
A46: 99.95 | B46: T90
A47: 109.95 | B47: T100
A48: 1000 | B48: T110
A55: Refer to Official Rules Document for full description
A57: ● 5+ point safety harness (SFI or FIA approved and not expired)
A58: ● Minimum of single layer full length fire suit, gloves and footwear
A59: ● Roll bar or roll cage
A60: ● Window nets or arm restraints

Sheet Vehicles
A1: =CONCATENATE(Title, " ", Version) -> COMSCC 2024 v12.0
A3: Touring Class Summary
A5: Showroom Assessment Car List
A6: Click "Select" next to your vehicle on the list below
A8: Selected Vehicle | B8: =IF(Car_Select_Error,"Error Multiple",IF(Car_Valid,OFFSET(Car_List,MATCH(TRUE,Car_Selected_Truth,0)-1,1,1,1),"")) ->  | C8: =IF(Car_Select_Error,"Vehicles Selected",IF(Car_Valid,OFFSET(Car_List,MATCH(TRUE,Car_Selected_Truth,0)-1,2,1,1),"")) ->  | D8: =IF(Car_Valid, OFFSET(Car_List, MATCH(TRUE, Car_Selected_Truth, 0)-1, 3, 1, 1),"") ->  | E8: =IF(Car_Valid, OFFSET(Car_List, MATCH(TRUE, Car_Selected_Truth, 0)-1, 4, 1, 1),"") ->  | F8: =IF(Car_Valid, OFFSET(Car_List, MATCH(TRUE, Car_Selected_Truth, 0)-1, 5, 1, 1),"") ->  | G8: =IF(Car_Valid, OFFSET(Car_List, MATCH(TRUE, Car_Selected_Truth, 0)-1, 6, 1, 1),"") ->  | H8: =IF(Car_Valid, OFFSET(Car_List, MATCH(TRUE, Car_Selected_Truth, 0)-1, 7, 1, 1),"") ->  | I8: =IF(Car_Valid, OFFSET(Car_List, MATCH(TRUE, Car_Selected_Truth, 0)-1, 8, 1, 1),"") ->  | J8: =IF(Car_Valid, OFFSET(Car_List, MATCH(TRUE, Car_Selected_Truth, 0)-1, 9, 1, 1),"") ->  | K8: =IF(Car_Valid, OFFSET(Car_List, MATCH(TRUE, Car_Selected_Truth, 0)-1, 10, 1, 1),"") ->  | L8: =IF(Car_Valid, OFFSET(Car_List, MATCH(TRUE, Car_Selected_Truth, 0)-1, 11, 1, 1),"") ->  | M8: =IF(Car_Valid, OFFSET(Car_List, MATCH(TRUE, Car_Selected_Truth, 0)-1, 12, 1, 1),"") ->  | N8: =IF(Car_Valid, OFFSET(Car_List, MATCH(TRUE, Car_Selected_Truth, 0)-1, 13, 1, 1),"") ->  | O8: =IF(Car_Valid, OFFSET(Car_List, MATCH(TRUE, Car_Selected_Truth, 0)-1, 14, 1, 1),"") -> 
Q9: =IF(R9=1, TRUE, FALSE) -> FALSE | R9: =COUNTIF(Car_Selected_Truth, "TRUE") -> 0 | S9: =IF(R9>1, TRUE, FALSE) -> FALSE
A11: Click "Select" to choose Vehicle | B11: Make | C11: Model | D11: Start Year | E11: End Year | F11: Showroom Base Weight (lbs) | G11: Factory Rated HP | H11: Factory Rated Torque | I11: Power (2/3HP + 1/3Torque) | J11: Weight/ Power | K11: Scaled Weight/ Power | L11: SUSP Index | M11: Performance Adjustment | N11: Showroom Assessment | O11: Base Classification | P11: p | Q11: q | R11: Selected | S11: Assessment
B12: Custom | C12: Custom | D12: 1900 | E12: 2099 | I12: =G12*(2/3)+H12*(1/3) -> 0 | J12: =F12/I12 ->  | K12: =J12*-4.25+112 ->  | M12: =(L12-60)/3*1.5 -> -30 | N12: =IF(ISNUMBER(M12),M12+K12, 0) ->  | O12: =INDEX(Base_Classes, MATCH($N12, Base_Assessments, 1)+1) ->  | P12: =OR(R12,A12) -> FALSE | R12: FALSE | U12: =AND(P12,$S$9) -> FALSE
B13: Acura | C13: Integra Type R | D13: 1995 | E13: 2001 | F13: 2639 | G13: 195 | H13: 130 | I13: 173.3333333 | J13: 15.225 | K13: 47.29375 | L13: 70 | M13: 5 | N13: =M13+K13 -> 52.29375 | O13: T50 | P13: FALSE | R13: FALSE | T13: =(L13-60)/3*1.5 -> 5 | U13: FALSE
B14: Acura | C14: NSX | D14: 1991 | E14: 1992 | F14: 2976 | G14: 270 | H14: 210 | I14: 250 | J14: 11.904 | K14: 61.408 | L14: 80 | M14: 10 | N14: 71.408 | O14: T70 | P14: FALSE | R14: FALSE | T14: 10 | U14: FALSE
B15: Acura | C15: NSX | D15: 1993 | E15: 1997 | F15: 3093 | G15: 270 | H15: 210 | I15: 250 | J15: 12.372 | K15: 59.419 | L15: 80 | M15: 10 | N15: 69.419 | O15: T60 | P15: FALSE | R15: FALSE | T15: 10 | U15: FALSE
B16: Acura | C16: NSX | D16: 1998 | E16: 2001 | F16: 3160 | G16: 290 | H16: 224 | I16: 268 | J16: 11.79104478 | K16: 61.8880597 | L16: 80 | M16: 10 | N16: 71.8880597 | O16: T70 | P16: FALSE | R16: FALSE | T16: 10 | U16: FALSE
B17: Acura | C17: NSX | D17: 2002 | E17: 2005 | F17: 2954 | G17: 290 | H17: 224 | I17: 268 | J17: 11.02238806 | K17: 65.15485075 | L17: 80 | M17: 10 | N17: 75.15485075 | O17: T70 | P17: FALSE | R17: FALSE | T17: 10 | U17: FALSE
B18: Acura | C18: NSX | D18: 2017 | E18: 2022 | F18: 3854 | G18: 573 | H18: 476 | I18: 540.6666667 | J18: 7.128236745 | K18: 81.70499383 | L18: 105 | M18: 22.5 | N18: 104.2049938 | O18: T100 | P18: FALSE | R18: FALSE | T18: 22.5 | U18: FALSE
B19: Acura | C19: RSX Type S | D19: 2002 | F19: 2767 | G19: 200 | H19: 142 | I19: 180.6666667 | J19: 15.31549815 | K19: 46.90913284 | L19: 60 | M19: 0 | N19: 46.90913284 | O19: T40 | P19: FALSE | R19: FALSE | T19: 0 | U19: FALSE
B20: Alfa Romeo | C20: 2000 Spider Veloce | D20: 1974 | E20: 1976 | F20: 2320 | G20: 110 | H20: 110 | I20: 110 | J20: 21.09090909 | K20: 22.36363636 | L20: 45 | M20: -7.5 | N20: 14.86363636 | O20: T30 | P20: FALSE | R20: FALSE | T20: -7.5 | U20: FALSE
B21: Alfa Romeo | C21: Giulia 2.0T AWD | D21: 2017 | F21: 3600 | G21: 280 | H21: 306 | I21: 288.6666667 | J21: 12.47113164 | K21: 58.99769053 | L21: 60 | M21: 0 | N21: 58.99769053 | O21: T50 | P21: FALSE | R21: FALSE | T21: 0 | U21: FALSE
B22: Ariel | C22: Atom | D22: 2006 | E22: 2006 | F22: 1431 | G22: 245 | H22: 150 | I22: 213.3333333 | J22: 6.7078125 | K22: 83.49179688 | L22: 100 | M22: 20 | N22: 103.4917969 | O22: T100 | P22: FALSE | R22: FALSE | T22: 20 | U22: FALSE
B23: Ariel | C23: Atom 500 | D23: 2008 | F23: 1213 | G23: 500 | H23: 284 | I23: 428 | J23: 2.83411215 | K23: 99.95502336 | L23: 100 | M23: 20 | N23: 119.9550234 | O23: T110 | P23: FALSE | R23: FALSE | T23: 20 | U23: FALSE
B24: Aston Martin | C24: DB5 | D24: 1963 | E24: 1965 | F24: 3310 | G24: 282 | H24: 288 | I24: 284 | J24: 11.65492958 | K24: 62.4665493 | L24: 40 | M24: -10 | N24: 52.4665493 | O24: T50 | P24: FALSE | R24: FALSE | T24: -10 | U24: FALSE
B25: Aston Martin | C25: DBS V12 | D25: 2007 | E25: 2012 | F25: 3740 | G25: 510 | H25: 420 | I25: 480 | J25: 7.791666667 | K25: 78.88541667 | L25: 80 | M25: 10 | N25: 88.88541667 | O25: T80 | P25: FALSE | R25: FALSE | T25: 10 | U25: FALSE
B26: Aston Martin | C26: Vantage | D26: 2012 | F26: 3595 | G26: 420 | H26: 346 | I26: 395.3333333 | J26: 9.093591906 | K26: 73.3522344 | L26: 80 | M26: 10 | N26: 83.3522344 | O26: T80 | P26: FALSE | R26: FALSE | T26: 10 | U26: FALSE
B27: Audi | C27: A4 1.8T Quattro | D27: 1996 | E27: 2001 | F27: 3241 | G27: 150 | H27: 155 | I27: 151.6666667 | J27: 21.36923077 | K27: 21.18076923 | L27: 60 | M27: 0 | N27: 21.18076923 | O27: T30 | P27: FALSE | R27: FALSE | T27: 0 | U27: FALSE
B28: Audi | C28: A4 2.0 T quattro | D28: 2005 | E28: 2005 | F28: 3517 | G28: 200 | H28: 207 | I28: 202.3333333 | J28: 17.38220758 | K28: 38.12561779 | L28: 60 | M28: 0 | N28: 38.12561779 | O28: T30 | P28: FALSE | R28: FALSE | T28: 0 | U28: FALSE
B29: Audi | C29: A4 2.0 T quattro | D29: 2006 | E29: 2008 | F29: 3549 | G29: 200 | H29: 207 | I29: 202.3333333 | J29: 17.54036244 | K29: 37.45345964 | L29: 60 | M29: 0 | N29: 37.45345964 | O29: T30 | P29: FALSE | R29: FALSE | T29: 0 | U29: FALSE
B30: Audi | C30: A4 2.8 Quattro | D30: 1996 | E30: 2001 | F30: 3384 | G30: 190 | H30: 207 | I30: 195.6666667 | J30: 17.29471891 | K30: 38.49744463 | L30: 60 | M30: 0 | N30: 38.49744463 | O30: T30 | P30: FALSE | R30: FALSE | T30: 0 | U30: FALSE
B31: Audi | C31: A4 3.0 Quattro | D31: 2002 | E31: 2005 | F31: 3583 | G31: 220 | H31: 221 | I31: 220.3333333 | J31: 16.26172466 | K31: 42.8876702 | L31: 60 | M31: 0 | N31: 42.8876702 | O31: T40 | P31: FALSE | R31: FALSE | T31: 0 | U31: FALSE
B32: Audi | C32: A4 3.2 quattro | D32: 2006 | E32: 2006 | F32: 3649 | G32: 255 | H32: 243 | I32: 251 | J32: 14.53784861 | K32: 50.21414343 | L32: 60 | M32: 0 | N32: 50.21414343 | O32: T50 | P32: FALSE | R32: FALSE | T32: 0 | U32: FALSE
B33: Audi | C33: A4 TT FWD | D33: 1998 | E33: 2006 | F33: 2910 | G33: 180 | H33: 173 | I33: 177.6666667 | J33: 16.37898687 | K33: 42.38930582 | L33: 60 | M33: 0 | N33: 42.38930582 | O33: T40 | P33: FALSE | R33: FALSE | T33: 0 | U33: FALSE
B34: Audi | C34: Coupe GT | D34: 1987 | E34: 1987 | F34: 2507 | G34: 134 | H34: 137 | I34: 135 | J34: 18.57037037 | K34: 33.07592593 | L34: 30 | M34: -15 | N34: 18.07592593 | O34: T30 | P34: FALSE | R34: FALSE | T34: -15 | U34: FALSE
B35: Audi | C35: R8 V10 | D35: 2006 | F35: 3583 | G35: 518 | H35: 391 | I35: 475.6666667 | J35: 7.532585844 | K35: 79.98651016 | L35: 90 | M35: 15 | N35: 94.98651016 | O35: T90 | P35: FALSE | R35: FALSE | T35: 15 | U35: FALSE
B36: Audi | C36: R8 V8 | D36: 2006 | F36: 3450 | G36: 414 | H36: 317 | I36: 381.6666667 | J36: 9.03930131 | K36: 73.58296943 | L36: 90 | M36: 15 | N36: 88.58296943 | O36: T80 | P36: FALSE | R36: FALSE | T36: 15 | U36: FALSE
B37: Audi | C37: S4 | D37: 1991 | E37: 1994 | F37: 3814 | G37: 227 | H37: 258 | I37: 237.3333333 | J37: 16.07022472 | K37: 43.70154494 | L37: 55 | M37: -2.5 | N37: 41.20154494 | O37: T40 | P37: FALSE | R37: FALSE | T37: -2.5 | U37: FALSE
B38: Audi | C38: S4 | D38: 1998 | E38: 2001 | F38: 3594 | G38: 250 | H38: 258 | I38: 252.6666667 | J38: 14.22427441 | K38: 51.54683377 | L38: 65 | M38: 2.5 | N38: 54.04683377 | O38: T50 | P38: FALSE | R38: FALSE | T38: 2.5 | U38: FALSE
B39: Audi | C39: S4 | D39: 2003 | E39: 2005 | F39: 3660 | G39: 340 | H39: 302 | I39: 327.3333333 | J39: 11.18126273 | K39: 64.4796334 | L39: 65 | M39: 2.5 | N39: 66.9796334 | O39: T60 | P39: FALSE | R39: FALSE | T39: 2.5 | U39: FALSE
B40: Audi | C40: S4 | D40: 2006 | E40: 2008 | F40: 3869 | G40: 340 | H40: 302 | I40: 327.3333333 | J40: 11.8197556 | K40: 61.7660387 | L40: 65 | M40: 2.5 | N40: 64.2660387 | O40: T60 | P40: FALSE | R40: FALSE | T40: 2.5 | U40: FALSE
B41: Audi | C41: S4 | D41: 2009 | F41: 3637 | G41: 333 | H41: 325 | I41: 330.3333333 | J41: 11.01009082 | K41: 65.20711403 | L41: 70 | M41: 5 | N41: 70.20711403 | O41: T70 | P41: FALSE | R41: FALSE | T41: 5 | U41: FALSE
B42: Audi | C42: S6 | D42: 1999 | E42: 2003 | F42: 4024 | G42: 340 | H42: 310 | I42: 330 | J42: 12.19393939 | K42: 60.17575758 | L42: 60 | M42: 0 | N42: 60.17575758 | O42: T60 | P42: FALSE | R42: FALSE | T42: 0 | U42: FALSE
B43: Audi | C43: S6 | D43: 2006 | E43: 2011 | F43: 4024 | G43: 429 | H43: 398 | I43: 418.6666667 | J43: 9.611464968 | K43: 71.15127389 | L43: 65 | M43: 2.5 | N43: 73.65127389 | O43: T70 | P43: FALSE | R43: FALSE | T43: 2.5 | U43: FALSE
B44: Audi | C44: S6 Quattro | D44: 1994 | E44: 1997 | F44: 3825 | G44: 227 | H44: 240 | I44: 231.3333333 | J44: 16.53458213 | K44: 41.72802594 | L44: 55 | M44: -2.5 | N44: 39.22802594 | O44: T30 | P44: FALSE | R44: FALSE | T44: -2.5 | U44: FALSE
B45: Audi | C45: TT RS | D45: 2012 | E45: 2013 | F45: 3307 | G45: 360 | H45: 343 | I45: 354.3333333 | J45: 9.333019755 | K45: 72.33466604 | L45: 80 | M45: 10 | N45: 82.33466604 | O45: T80 | P45: FALSE | R45: FALSE | T45: 10 | U45: FALSE
B46: Audi | C46: TTS | D46: 2009 | E46: 2015 | F46: 3200 | G46: 265 | H46: 258 | I46: 262.6666667 | J46: 12.18274112 | K46: 60.22335025 | L46: 65 | M46: 2.5 | N46: 62.72335025 | O46: T60 | P46: FALSE | R46: FALSE | T46: 2.5 | U46: FALSE
B47: Austin Healy | C47: 3000 MK III | D47: 1959 | E47: 1967 | F47: 2550 | G47: 150 | H47: 165 | I47: 155 | J47: 16.4516129 | K47: 42.08064516 | L47: 20 | M47: -20 | N47: 22.08064516 | O47: T30 | P47: FALSE | R47: FALSE | T47: -20 | U47: FALSE
B48: BMW | C48: M8 competition grand coupe | D48: 2020 | E48: 2023 | F48: 4480 | G48: 617 | H48: 553 | I48: 595.6666667 | J48: 7.520984891 | K48: 80.03581421 | L48: 80 | M48: 10 | N48: 90.03581421 | O48: T90 | P48: FALSE | R48: FALSE | T48: 10 | U48: FALSE
B49: BMW | C49: 2002 | D49: 1974 | F49: 2317 | G49: 100 | H49: 106 | I49: 102 | J49: 22.71568627 | K49: 15.45833333 | L49: 30 | M49: -15 | N49: 0.4583333333 | O49: T30 | P49: FALSE | R49: FALSE | T49: -15 | U49: FALSE
B50: BMW | C50: 128i | D50: 2008 | E50: 2013 | F50: 3252 | G50: 230 | H50: 200 | I50: 220 | J50: 14.78181818 | K50: 49.17727273 | L50: 68 | M50: 4 | N50: 53.17727273 | O50: T50 | P50: FALSE | R50: FALSE | T50: 4 | U50: FALSE
B51: BMW | C51: 135i Coupe inc'l M-Sport | D51: 2004 | E51: 2013 | F51: 3373 | G51: 300 | H51: 300 | I51: 300 | J51: 11.24333333 | K51: 64.21583333 | L51: 70 | M51: 5 | N51: 69.21583333 | O51: T60 | P51: FALSE | R51: FALSE | T51: 5 | U51: FALSE
B52: BMW | C52: 135is | D52: 2013 | F52: 3373 | G52: 320 | H52: 317 | I52: 319 | J52: 10.57366771 | K52: 67.06191223 | L52: 75 | M52: 7.5 | N52: 74.56191223 | O52: T70 | P52: FALSE | R52: FALSE | T52: 7.5 | U52: FALSE
B53: BMW | C53: 318i | D53: 1990 | E53: 1991 | F53: 2657 | G53: 134 | H53: 127 | I53: 131.6666667 | J53: 20.17974684 | K53: 26.23607595 | L53: 60 | M53: 0 | N53: 26.23607595 | O53: T30 | P53: FALSE | R53: FALSE | T53: 0 | U53: FALSE
B54: BMW | C54: 318is | D54: 1990 | E54: 1991 | F54: 2602 | G54: 134 | H54: 127 | I54: 131.6666667 | J54: 19.76202532 | K54: 28.01139241 | L54: 60 | M54: 0 | N54: 28.01139241 | O54: T30 | P54: FALSE | R54: FALSE | T54: 0 | U54: FALSE
B55: BMW | C55: 318ti | D55: 1993 | E55: 2000 | F55: 2745 | G55: 140 | H55: 129 | I55: 136.3333333 | J55: 20.13447433 | K55: 26.42848411 | L55: 60 | M55: 0 | N55: 26.42848411 | O55: T30 | P55: FALSE | R55: FALSE | T55: 0 | U55: FALSE
B56: BMW | C56: 318ti with S52 swap | D56: 1991 | E56: 1991 | F56: 2602 | G56: 240 | H56: 236 | I56: 238.6666667 | J56: 10.90223464 | K56: 65.66550279 | L56: 60 | M56: 0 | N56: 65.66550279 | O56: T60 | P56: FALSE | R56: FALSE | T56: 0 | U56: FALSE
B57: BMW | C57: 320i | D57: 2013 | F57: 3295 | G57: 180 | H57: 184 | I57: 181.3333333 | J57: 18.17095588 | K57: 34.7734375 | L57: 70 | M57: 5 | N57: 39.7734375 | O57: T30 | P57: FALSE | R57: FALSE | T57: 5 | U57: FALSE
B58: BMW | C58: 323ci | D58: 2000 | F58: 3153 | G58: 170 | H58: 181 | I58: 173.6666667 | J58: 18.15547025 | K58: 34.83925144 | L58: 60 | M58: 0 | N58: 34.83925144 | O58: T30 | P58: FALSE | R58: FALSE | T58: 0 | U58: FALSE
B59: BMW | C59: 325i | D59: 1991 | E59: 1991 | F59: 2854 | G59: 168 | H59: 164 | I59: 166.6666667 | J59: 17.124 | K59: 39.223 | L59: 60 | M59: 0 | N59: 39.223 | O59: T30 | P59: FALSE | R59: FALSE | T59: 0 | U59: FALSE
B60: BMW | C60: 325i | D60: 1992 | E60: 1995 | F60: 3087 | G60: 189 | H60: 181 | I60: 186.3333333 | J60: 16.56708408 | K60: 41.58989267 | L60: 60 | M60: 0 | N60: 41.58989267 | O60: T40 | P60: FALSE | R60: FALSE | T60: 0 | U60: FALSE
B61: BMW | C61: 325i | D61: 2001 | E61: 2005 | F61: 3241 | G61: 184 | H61: 175 | I61: 181 | J61: 17.90607735 | K61: 35.89917127 | L61: 60 | M61: 0 | N61: 35.89917127 | O61: T30 | P61: FALSE | R61: FALSE | T61: 0 | U61: FALSE
B62: BMW | C62: 325is | D62: 1992 | E62: 1995 | F62: 3087 | G62: 189 | H62: 181 | I62: 186.3333333 | J62: 16.56708408 | K62: 41.58989267 | L62: 65 | M62: 2.5 | N62: 44.08989267 | O62: T40 | P62: FALSE | R62: FALSE | T62: 2.5 | U62: FALSE
B63: BMW | C63: 328is | D63: 1996 | E63: 1999 | F63: 3120 | G63: 190 | H63: 206 | I63: 195.3333333 | J63: 15.97269625 | K63: 44.11604096 | L63: 65 | M63: 2.5 | N63: 46.61604096 | O63: T40 | P63: FALSE | R63: FALSE | T63: 2.5 | U63: FALSE
B64: BMW | C64: 328iX | D64: 2012 | E64: 2019 | F64: 3498 | G64: 240 | H64: 255 | I64: 245 | J64: 14.27755102 | K64: 51.32040816 | L64: 70 | M64: 5 | N64: 56.32040816 | O64: T50 | P64: FALSE | R64: FALSE | T64: 5 | U64: FALSE
B65: BMW | C65: 330Ci | D65: 2003 | E65: 2003 | F65: 3285 | G65: 228 | H65: 221 | I65: 225.6666667 | J65: 14.55686854 | K65: 50.13330871 | L65: 65 | M65: 2.5 | N65: 52.63330871 | O65: T50 | P65: FALSE | R65: FALSE | T65: 2.5 | U65: FALSE
B66: BMW | C66: 330Ci ZHP | D66: 2003 | E66: 2005 | F66: 3285 | G66: 235 | H66: 222 | I66: 230.6666667 | J66: 14.24132948 | K66: 51.47434971 | L66: 70 | M66: 5 | N66: 56.47434971 | O66: T50 | P66: FALSE | R66: FALSE | T66: 5 | U66: FALSE
B67: BMW | C67: 330i | D67: 2006 | E67: 2006 | F67: 3417 | G67: 255 | H67: 221 | I67: 243.6666667 | J67: 14.02325581 | K67: 52.40116279 | L67: 70 | M67: 5 | N67: 57.40116279 | O67: T50 | P67: FALSE | R67: FALSE | T67: 5 | U67: FALSE
B68: BMW | C68: 330i Sports Package | D68: 2001 | E68: 2005 | F68: 3318 | G68: 225 | H68: 216 | I68: 222 | J68: 14.94594595 | K68: 48.47972973 | L68: 70 | M68: 5 | N68: 53.47972973 | O68: T50 | P68: FALSE | R68: FALSE | T68: 5 | U68: FALSE
B69: BMW | C69: 335d RWD Sedan | D69: 2007 | E69: 2011 | F69: 3781 | G69: 265 | H69: 425 | I69: 318.3333333 | J69: 11.87748691 | K69: 61.52068063 | L69: 70 | M69: 5 | N69: 66.52068063 | O69: T60 | P69: FALSE | R69: FALSE | T69: 5 | U69: FALSE
B70: BMW | C70: 335i RWD Coupe | D70: 2007 | F70: 3571 | G70: 300 | H70: 300 | I70: 300 | J70: 11.90333333 | K70: 61.41083333 | L70: 70 | M70: 5 | N70: 66.41083333 | O70: T60 | P70: FALSE | R70: FALSE | T70: 5 | U70: FALSE
B71: BMW | C71: 335i RWD Sedan | D71: 2006 | E71: 2009 | F71: 3594 | G71: 300 | H71: 300 | I71: 300 | J71: 11.98 | K71: 61.085 | L71: 70 | M71: 5 | N71: 66.085 | O71: T60 | P71: FALSE | R71: FALSE | T71: 5 | U71: FALSE
B72: BMW | C72: 335xi | D72: 2008 | E72: 2008 | F72: 3814 | G72: 300 | H72: 295 | I72: 298.3333333 | J72: 12.78435754 | K72: 57.66648045 | L72: 70 | M72: 5 | N72: 62.66648045 | O72: T60 | P72: FALSE | R72: FALSE | T72: 5 | U72: FALSE
B73: BMW | C73: 340XI | D73: 2017 | F73: 3802 | G73: 320 | H73: 332 | I73: 324 | J73: 11.7345679 | K73: 62.12808642 | L73: 70 | M73: 5 | N73: 67.12808642 | O73: T60 | P73: FALSE | R73: FALSE | T73: 5 | U73: FALSE
B74: BMW | C74: 528i | D74: 1995 | E74: 2000 | F74: 3252 | G74: 190 | H74: 210 | I74: 196.6666667 | J74: 16.53559322 | K74: 41.72372881 | L74: 65 | M74: 2.5 | N74: 44.22372881 | O74: T40 | P74: FALSE | R74: FALSE | T74: 2.5 | U74: FALSE
B75: BMW | C75: 530i | D75: 2000 | E75: 2003 | F75: 3472 | G75: 228 | H75: 220 | I75: 225.3333333 | J75: 15.40828402 | K75: 46.5147929 | L75: 65 | M75: 2.5 | N75: 49.0147929 | O75: T40 | P75: FALSE | R75: FALSE | T75: 2.5 | U75: FALSE
B76: BMW | C76: 535i | D76: 1985 | E76: 1988 | F76: 3249 | G76: 182 | H76: 214 | I76: =G76*(2/3)+H76*(1/3) -> 192.6666667 | J76: =F76/I76 -> 16.8633218 | K76: =J76*-4.25+112 -> 40.33088235 | L76: 40 | M76: =(L76-60)/3*1.5 -> -10 | N76: 30.33088235 | O76: =INDEX(Base_Classes, MATCH($N76, Base_Assessments, 1)+1) -> T30 | P76: =OR(R76,A76) -> FALSE | R76: FALSE | T76: -10 | U76: =AND(P76,$S$9) -> FALSE
B77: BMW | C77: 540i | D77: 1996 | E77: 2003 | F77: 3803 | G77: 282 | H77: 320 | I77: 294.6666667 | J77: 12.9061086 | K77: 57.14903846 | L77: 65 | M77: 2.5 | N77: =M77+K77 -> 59.64903846 | O77: T50 | P77: FALSE | R77: FALSE | T77: =(L77-60)/3*1.5 -> 2.5 | U77: FALSE
B78: BMW | C78: E30 M3 | D78: 1987 | E78: 1991 | F78: 2866 | G78: 192 | H78: 170 | I78: 184.6666667 | J78: 15.5198556 | K78: 46.04061372 | L78: 70 | M78: 5 | N78: 51.04061372 | O78: T50 | P78: FALSE | R78: FALSE | T78: 5 | U78: FALSE
B79: BMW | C79: E36 M3 (3.0) | D79: 1995 | E79: 1995 | F79: 3175 | G79: 240 | H79: 225 | I79: 235 | J79: 13.5106383 | K79: 54.57978723 | L79: 81 | M79: 10.5 | N79: 65.07978723 | O79: T60 | P79: FALSE | R79: FALSE | T79: 10.5 | U79: FALSE
B80: BMW | C80: E36 M3 (3.2) | D80: 1997 | E80: 1999 | F80: 3175 | G80: 240 | H80: 236 | I80: 238.6666667 | J80: 13.30307263 | K80: 55.46194134 | L80: 81 | M80: 10.5 | N80: 65.96194134 | O80: T60 | P80: FALSE | R80: FALSE | T80: 10.5 | U80: FALSE
B81: BMW | C81: E46 M3 | D81: 2001 | E81: 2006 | F81: 3415 | G81: 333 | H81: 269 | I81: 311.6666667 | J81: 10.95721925 | K81: 65.43181818 | L81: 80 | M81: 10 | N81: 75.43181818 | O81: T70 | P81: FALSE | R81: FALSE | T81: 10 | U81: FALSE
B82: BMW | C82: E90 M3 | D82: 2007 | E82: 2008 | F82: 3704 | G82: 414 | H82: 295 | I82: 374.3333333 | J82: 9.89492431 | K82: 69.94657168 | L82: 80 | M82: 10 | N82: 79.94657168 | O82: T70 | P82: FALSE | R82: FALSE | T82: 10 | U82: FALSE
B83: BMW | C83: F80 M3 | D83: 2015 | E83: 2018 | F83: 3540 | G83: 425 | H83: 406 | I83: 418.6666667 | J83: 8.455414013 | K83: 76.06449045 | L83: 90 | M83: 15 | N83: 91.06449045 | O83: T90 | P83: FALSE | R83: FALSE | T83: 15 | U83: FALSE
B84: BMW | C84: F82 M4 GTS coupe | D84: 2016 | E84: 2020 | F84: 3494 | G84: 493 | H84: 443 | I84: 476.3333333 | J84: 7.33519944 | K84: 80.82540238 | L84: 90 | M84: 15 | N84: 95.82540238 | O84: T90 | P84: FALSE | R84: FALSE | T84: 15 | U84: FALSE
B85: BMW | C85: F82/83 M4 | D85: 2015 | E85: 2020 | F85: 3530 | G85: 425 | H85: 406 | I85: 418.6666667 | J85: 8.431528662 | K85: 76.16600318 | L85: 90 | M85: 15 | N85: 91.16600318 | O85: T90 | P85: FALSE | R85: FALSE | T85: 15 | U85: FALSE
B86: BMW | C86: F82/83 M4 Competition | D86: 2015 | E86: 2020 | F86: 3530 | G86: 444 | H86: 450 | I86: 446 | J86: 7.914798206 | K86: 78.36210762 | L86: 100 | M86: 20 | N86: 98.36210762 | O86: T90 | P86: FALSE | R86: FALSE | T86: 20 | U86: FALSE
B87: BMW | C87: G82/83 M4 | D87: 2021 | F87: 3690 | G87: 473 | H87: 406 | I87: 450.6666667 | J87: 8.187869822 | K87: 77.20155325 | L87: 90 | M87: 15 | N87: 92.20155325 | O87: T90 | P87: FALSE | R87: FALSE | T87: 15 | U87: FALSE
B88: BMW | C88: G82/83 M4 Competition | D88: 2021 | F88: 3746 | G88: 503 | H88: 479 | I88: 495 | J88: 7.567676768 | K88: 79.83737374 | L88: 100 | M88: 20 | N88: 99.83737374 | O88: T90 | P88: FALSE | R88: FALSE | T88: 20 | U88: FALSE
B89: BMW | C89: M Coupe | D89: 1998 | E89: 2000 | F89: 3131 | G89: 240 | H89: 236 | I89: 238.6666667 | J89: 13.11871508 | K89: 56.24546089 | L89: 70 | M89: 5 | N89: 61.24546089 | O89: T60 | P89: FALSE | R89: FALSE | T89: 5 | U89: FALSE
B90: BMW | C90: M Coupe | D90: 2001 | E90: 2002 | F90: 3131 | G90: 315 | H90: 261 | I90: 297 | J90: 10.54208754 | K90: 67.19612795 | L90: 70 | M90: 5 | N90: 72.19612795 | O90: T70 | P90: FALSE | R90: FALSE | T90: 5 | U90: FALSE
B91: BMW | C91: M Roadster | D91: 1998 | E91: 2000 | F91: 3084 | G91: 240 | H91: 236 | I91: 238.6666667 | J91: 12.92178771 | K91: 57.08240223 | L91: 65 | M91: 2.5 | N91: 59.58240223 | O91: T50 | P91: FALSE | R91: FALSE | T91: 2.5 | U91: FALSE
B92: BMW | C92: M Roadster | D92: 2001 | E92: 2002 | F92: 3084 | G92: 315 | H92: 261 | I92: 297 | J92: 10.38383838 | K92: 67.86868687 | L92: 65 | M92: 2.5 | N92: 70.36868687 | O92: T70 | P92: FALSE | R92: FALSE | T92: 2.5 | U92: FALSE
B93: BMW | C93: M2 | D93: 2016 | F93: 3455 | G93: 365 | H93: 343 | I93: 357.6666667 | J93: 9.659832246 | K93: 70.94571295 | L93: 85 | M93: 12.5 | N93: 83.44571295 | O93: T80 | P93: FALSE | R93: FALSE | T93: 12.5 | U93: FALSE
B94: BMW | C94: M2 Competition | D94: 2019 | E94: 2020 | F94: 3472 | G94: 405 | H94: 406 | I94: 405.3333333 | J94: 8.565789474 | K94: 75.59539474 | L94: 85 | M94: 12.5 | N94: 88.09539474 | O94: T80 | P94: FALSE | R94: FALSE | T94: 12.5 | U94: FALSE
B95: BMW | C95: M2 CS | D95: 2020 | E95: 2020 | F95: 3455 | G95: 444 | H95: 406 | I95: 431.3333333 | J95: 8.010046368 | K95: 77.95730294 | L95: 90 | M95: 15 | N95: 92.95730294 | O95: T90 | P95: FALSE | R95: FALSE | T95: 15 | U95: FALSE
B96: BMW | C96: M235i | D96: 2016 | F96: 3650 | G96: 320 | H96: 330 | I96: 323.3333333 | J96: 11.28865979 | K96: 64.02319588 | L96: 80 | M96: 10 | N96: 74.02319588 | O96: T70 | P96: FALSE | R96: FALSE | T96: 10 | U96: FALSE
B97: BMW | C97: M3 CSL | D97: 1995 | E97: 1995 | F97: 2950 | G97: 240 | H97: 225 | I97: 235 | J97: 12.55319149 | K97: 58.64893617 | L97: 81 | M97: 10.5 | N97: 69.14893617 | O97: T60 | P97: FALSE | R97: FALSE | T97: 10.5 | U97: FALSE
B98: BMW | C98: M5 | D98: 1985 | E98: 1988 | F98: 3417 | G98: 256 | H98: 243 | I98: 251.6666667 | J98: 13.57748344 | K98: 54.29569536 | L98: 55 | M98: -2.5 | N98: 51.79569536 | O98: T50 | P98: FALSE | R98: FALSE | T98: -2.5 | U98: FALSE
B99: BMW | C99: M5 | D99: 1989 | E99: 1995 | F99: 3858 | G99: 311 | H99: 266 | I99: 296 | J99: 13.03378378 | K99: 56.60641892 | L99: 60 | M99: 0 | N99: 56.60641892 | O99: T50 | P99: FALSE | R99: FALSE | T99: 0 | U99: FALSE
B100: BMW | C100: M5 | D100: 1998 | E100: 2003 | F100: 4026 | G100: 394 | H100: 368 | I100: 385.3333333 | J100: 10.44809689 | K100: 67.59558824 | L100: 65 | M100: 2.5 | N100: 70.09558824 | O100: T70 | P100: FALSE | R100: FALSE | T100: 2.5 | U100: FALSE
B101: BMW | C101: M5 | D101: 2005 | E101: 2010 | F101: 4090 | G101: 500 | H101: 380 | I101: 460 | J101: 8.891304348 | K101: 74.21195652 | L101: 70 | M101: 5 | N101: 79.21195652 | O101: T70 | P101: FALSE | R101: FALSE | T101: 5 | U101: FALSE
B102: BMW | C102: M5 | D102: 2011 | F102: 4288 | G102: 560 | H102: 402 | I102: 507.3333333 | J102: 8.452036794 | K102: 76.07884363 | L102: 70 | M102: 5 | N102: 81.07884363 | O102: T80 | P102: FALSE | R102: FALSE | T102: 5 | U102: FALSE
B103: BMW | C103: M6 | D103: 1983 | E103: 1989 | F103: 3565 | G103: 256 | H103: 243 | I103: 251.6666667 | J103: 14.16556291 | K103: 51.79635762 | L103: 60 | M103: 0 | N103: 51.79635762 | O103: T50 | P103: FALSE | R103: FALSE | T103: 0 | U103: FALSE
B104: BMW | C104: M6 | D104: 2005 | E104: 2010 | F104: 3770 | G104: 500 | H104: 380 | I104: 460 | J104: 8.195652174 | K104: 77.16847826 | L104: 70 | M104: 5 | N104: 82.16847826 | O104: T80 | P104: FALSE | R104: FALSE | T104: 5 | U104: FALSE
B105: BMW | C105: M6 | D105: 2012 | F105: 4242 | G105: 560 | H105: 402 | I105: 507.3333333 | J105: 8.361366623 | K105: 76.46419185 | L105: 70 | M105: 5 | N105: 81.46419185 | O105: T80 | P105: FALSE | R105: FALSE | T105: 5 | U105: FALSE
B106: BMW | C106: Z3 1.9L | D106: 1996 | E106: 1996 | F106: 2690 | G106: 138 | H106: 133 | I106: 136.3333333 | J106: 19.73105134 | K106: 28.14303178 | L106: 60 | M106: 0 | N106: 28.14303178 | O106: T30 | P106: FALSE | R106: FALSE | T106: 0 | U106: FALSE
B107: BMW | C107: Z3 2.3L | D107: 2000 | E107: 2000 | F107: 2899 | G107: 170 | H107: 181 | I107: 173.6666667 | J107: 16.69289827 | K107: 41.05518234 | L107: 60 | M107: 0 | N107: 41.05518234 | O107: T40 | P107: FALSE | R107: FALSE | T107: 0 | U107: FALSE
B108: BMW | C108: Z3 2.8 | D108: 2000 | E108: 2000 | F108: 2910 | G108: 193 | H108: 206 | I108: 197.3333333 | J108: 14.74662162 | K108: 49.32685811 | L108: 60 | M108: 0 | N108: 49.32685811 | O108: T40 | P108: FALSE | R108: FALSE | T108: 0 | U108: FALSE
B109: BMW | C109: Z4 3.0si | D109: 2006 | E109: 2008 | F109: 3086 | G109: 255 | H109: 220 | I109: 243.3333333 | J109: 12.68219178 | K109: 58.10068493 | L109: 70 | M109: 5 | N109: 63.10068493 | O109: T60 | P109: FALSE | R109: FALSE | T109: 5 | U109: FALSE
B110: BMW | C110: Z4 M Roadster | D110: 2006 | E110: 2008 | F110: 3197 | G110: 330 | H110: 262 | I110: 307.3333333 | J110: 10.40238612 | K110: 67.789859 | L110: 75 | M110: 7.5 | N110: 75.289859 | O110: T70 | P110: FALSE | R110: FALSE | T110: 7.5 | U110: FALSE
B111: BMW | C111: Z4 sDrive 30i 4 cyl turbo | D111: 2020 | F111: 3287 | G111: 255 | H111: 295 | I111: 268.3333333 | J111: 12.24968944 | K111: 59.93881988 | L111: 85 | M111: 12.5 | N111: 72.43881988 | O111: T70 | P111: FALSE | R111: FALSE | T111: 12.5 | U111: FALSE
B112: BMW | C112: Z4 sDrive M40i 6 Cyl | D112: 2021 | F112: 3457 | G112: 382 | H112: 369 | I112: 377.6666667 | J112: 9.153574581 | K112: 73.09730803 | L112: 85 | M112: 12.5 | N112: 85.59730803 | O112: T80 | P112: FALSE | R112: FALSE | T112: 12.5 | U112: FALSE
B113: BMW | C113: Z8 | D113: 1999 | E113: 2003 | F113: 3494 | G113: 400 | H113: 370 | I113: 390 | J113: 8.958974359 | K113: 73.92435897 | L113: 75 | M113: 7.5 | N113: 81.42435897 | O113: T80 | P113: FALSE | R113: FALSE | T113: 7.5 | U113: FALSE
B114: Bugatti | C114: Veyron | D114: 2005 | E114: 2011 | F114: 4162 | G114: 987 | H114: 922 | I114: 965.3333333 | J114: 4.311464088 | K114: 93.67627762 | L114: 95 | M114: 17.5 | N114: 111.1762776 | O114: T110 | P114: FALSE | R114: FALSE | T114: 17.5 | U114: FALSE
B115: Cadillac | C115: ATS-V Coupe | D115: 2016 | E115: 2017 | F115: 3760 | G115: 464 | H115: 445 | I115: 457.6666667 | J115: 8.215586307 | K115: 77.08375819 | L115: 90 | M115: 15 | N115: 92.08375819 | O115: T90 | P115: FALSE | R115: FALSE | T115: 15 | U115: FALSE
B116: Cadillac | C116: ATS-V Sedan V6 | D116: 2016 | E116: 2019 | F116: 3803 | G116: 335 | H116: 285 | I116: 318.3333333 | J116: 11.94659686 | K116: 61.22696335 | L116: 90 | M116: 15 | N116: 76.22696335 | O116: T70 | P116: FALSE | R116: FALSE | T116: 15 | U116: FALSE
B117: Cadillac | C117: CTS-V | D117: 2004 | E117: 2007 | F117: 3850 | G117: 400 | H117: 395 | I117: 398.3333333 | J117: 9.665271967 | K117: 70.92259414 | L117: 55 | M117: -2.5 | N117: 68.42259414 | O117: T60 | P117: FALSE | R117: FALSE | T117: -2.5 | U117: FALSE
B118: Cadillac | C118: CTS-V | D118: 2009 | F118: 4250 | G118: 556 | H118: 551 | I118: 554.3333333 | J118: 7.666867108 | K118: 79.41581479 | L118: 60 | M118: 0 | N118: 79.41581479 | O118: T70 | P118: FALSE | R118: FALSE | T118: 0 | U118: FALSE
B119: Chevrolet | C119: Camaro LS | D119: 2010 | F119: 3750 | G119: 312 | H119: 278 | I119: 300.6666667 | J119: 12.47228381 | K119: 58.99279379 | L119: 65 | M119: 2.5 | N119: 61.49279379 | O119: T60 | P119: FALSE | R119: FALSE | T119: 2.5 | U119: FALSE
B120: Chevrolet | C120: Camaro RS | D120: 1994 | E120: 1997 | F120: 3473 | G120: 200 | H120: 225 | I120: 208.3333333 | J120: 16.6704 | K120: 41.1508 | L120: 60 | M120: 0 | N120: 41.1508 | O120: T40 | P120: FALSE | R120: FALSE | T120: 0 | U120: FALSE
B121: Chevrolet | C121: Camaro RS | D121: 1998 | E121: 2001 | F121: 3349 | G121: 190 | H121: 225 | I121: 201.6666667 | J121: 16.60661157 | K121: 41.42190083 | L121: 65 | M121: 2.5 | N121: 43.92190083 | O121: T40 | P121: FALSE | R121: FALSE | T121: 2.5 | U121: FALSE
B122: Chevrolet | C122: Camaro SS | D122: 2010 | F122: 3860 | G122: 426 | H122: 420 | I122: 424 | J122: 9.103773585 | K122: 73.30896226 | L122: 65 | M122: 2.5 | N122: 75.80896226 | O122: T70 | P122: FALSE | R122: FALSE | T122: 2.5 | U122: FALSE
B123: Chevrolet | C123: Camaro SS | D123: 2018 | F123: 3685 | G123: 455 | H123: 455 | I123: 455 | J123: 8.098901099 | K123: 77.57967033 | L123: 75 | M123: 7.5 | N123: 85.07967033 | O123: T80 | P123: FALSE | R123: FALSE | T123: 7.5 | U123: FALSE
B124: Chevrolet | C124: Camaro SS 1LE | D124: 2017 | F124: 3743 | G124: 455 | H124: 455 | I124: 455 | J124: 8.226373626 | K124: 77.03791209 | L124: 90 | M124: 15 | N124: 92.03791209 | O124: T90 | P124: FALSE | R124: FALSE | T124: 15 | U124: FALSE
B125: Chevrolet | C125: Camaro SS L99 Automatic | D125: 2010 | E125: 2013 | F125: 3913 | G125: 400 | H125: 410 | I125: 403.3333333 | J125: 9.701652893 | K125: 70.76797521 | L125: 65 | M125: 2.5 | N125: 73.26797521 | O125: T70 | P125: FALSE | R125: FALSE | T125: 2.5 | U125: FALSE
B126: Chevrolet | C126: Camaro Z28 | D126: 1994 | E126: 1997 | F126: 3473 | G126: 275 | H126: 325 | I126: 291.6666667 | J126: 11.90742857 | K126: 61.39342857 | L126: 60 | M126: 0 | N126: 61.39342857 | O126: T60 | P126: FALSE | R126: FALSE | T126: 0 | U126: FALSE
B127: Chevrolet | C127: Camaro Z28 | D127: 1998 | E127: 2001 | F127: 3459 | G127: 284 | H127: 322 | I127: 296.6666667 | J127: 11.65955056 | K127: 62.44691011 | L127: 65 | M127: 2.5 | N127: 64.94691011 | O127: T60 | P127: FALSE | R127: FALSE | T127: 2.5 | U127: FALSE
B128: Chevrolet | C128: Camaro Z28 | D128: 2014 | E128: 2015 | F128: 3856 | G128: 505 | H128: 481 | I128: 497 | J128: 7.758551308 | K128: 79.02615694 | L128: 75 | M128: 7.5 | N128: 86.52615694 | O128: T80 | P128: FALSE | R128: FALSE | T128: 7.5 | U128: FALSE
B129: Chevrolet | C129: Camaro ZL1 | D129: 2017 | F129: 3886 | G129: 650 | H129: 650 | I129: 650 | J129: 5.978461538 | K129: 86.59153846 | L129: 80 | M129: 10 | N129: 96.59153846 | O129: T90 | P129: FALSE | R129: FALSE | T129: 10 | U129: FALSE
B130: Chevrolet | C130: Camaro ZL1 | D130: 2012 | E130: 2015 | F130: 4118 | G130: 580 | H130: 556 | I130: 572 | J130: 7.199300699 | K130: 81.40297203 | L130: 75 | M130: 7.5 | N130: 88.90297203 | O130: T80 | P130: FALSE | R130: FALSE | T130: 7.5 | U130: FALSE
B131: Chevrolet | C131: Camaro ZL1 1LE | D131: 2019 | F131: 3886 | G131: 650 | H131: 650 | I131: 650 | J131: 5.978461538 | K131: 86.59153846 | L131: 90 | M131: 15 | N131: 101.5915385 | O131: T100 | P131: FALSE | R131: FALSE | T131: 15 | U131: FALSE
B132: Chevrolet | C132: Corvette | D132: 1986 | E132: 1986 | F132: 3200 | G132: 230 | H132: 330 | I132: 263.3333333 | J132: 12.15189873 | K132: 60.35443038 | L132: 70 | M132: 5 | N132: 65.35443038 | O132: T60 | P132: FALSE | R132: FALSE | T132: 5 | U132: FALSE
B133: Chevrolet | C133: Corvette (C5) Coupe/Convertible | D133: 1997 | E133: 2000 | F133: 3230 | G133: 345 | H133: 350 | I133: 346.6666667 | J133: 9.317307692 | K133: 72.40144231 | L133: 80 | M133: 10 | N133: 82.40144231 | O133: T80 | P133: FALSE | R133: FALSE | T133: 10 | U133: FALSE
B134: Chevrolet | C134: Corvette (C5) Coupe/Convertible | D134: 2001 | E134: 2004 | F134: 3230 | G134: 350 | H134: 360 | I134: 353.3333333 | J134: 9.141509434 | K134: 73.14858491 | L134: 80 | M134: 10 | N134: 83.14858491 | O134: T80 | P134: FALSE | R134: FALSE | T134: 10 | U134: FALSE
B135: Chevrolet | C135: Corvette (C5) Z06 | D135: 2001 | E135: 2001 | F135: 3130 | G135: 385 | H135: 385 | I135: 385 | J135: 8.12987013 | K135: 77.44805195 | L135: 90 | M135: 15 | N135: 92.44805195 | O135: T90 | P135: FALSE | R135: FALSE | T135: 15 | U135: FALSE
B136: Chevrolet | C136: Corvette (C5) Z06 | D136: 2002 | E136: 2004 | F136: 3116 | G136: 405 | H136: 400 | I136: 403.3333333 | J136: 7.725619835 | K136: 79.1661157 | L136: 80 | M136: 10 | N136: 89.1661157 | O136: T80 | P136: FALSE | R136: FALSE | T136: 10 | U136: FALSE
B137: Chevrolet | C137: Corvette (C6) Coupe Z06 | D137: 2006 | E137: 2007 | F137: 3133 | G137: 505 | H137: 470 | I137: 493.3333333 | J137: 6.350675676 | K137: 85.00962838 | L137: 90 | M137: 15 | N137: 100.0096284 | O137: T100 | P137: FALSE | R137: FALSE | T137: 15 | U137: FALSE
B138: Chevrolet | C138: Corvette (C6) Coupe Z06 | D138: 2008 | E138: 2008 | F138: 3161 | G138: 506 | H138: 470 | I138: 494 | J138: 6.398785425 | K138: 84.80516194 | L138: 90 | M138: 15 | N138: 99.80516194 | O138: T90 | P138: FALSE | R138: FALSE | T138: 15 | U138: FALSE
B139: Chevrolet | C139: Corvette (C6) Coupe Z06 | D139: 2009 | E139: 2013 | F139: 3199 | G139: 506 | H139: 470 | I139: 494 | J139: 6.475708502 | K139: 84.47823887 | L139: 90 | M139: 15 | N139: 99.47823887 | O139: T90 | P139: FALSE | R139: FALSE | T139: 15 | U139: FALSE
B140: Chevrolet | C140: Corvette (C6) Coupe Z51 | D140: 2005 | E140: 2007 | F140: 3179 | G140: 400 | H140: 400 | I140: =G140*(2/3)+H140*(1/3) -> 400 | J140: =F140/I140 -> 7.9475 | K140: =J140*-4.25+112 -> 78.223125 | L140: 87 | M140: =(L140-60)/3*1.5 -> 13.5 | N140: 91.723125 | O140: =INDEX(Base_Classes, MATCH($N140, Base_Assessments, 1)+1) -> T90 | P140: =OR(R140,A140) -> FALSE | R140: FALSE | T140: 13.5 | U140: =AND(P140,$S$9) -> FALSE
B141: Chevrolet | C141: Corvette (C6) Coupe Z51 | D141: 2008 | E141: 2009 | F141: 3216 | G141: 430 | H141: 424 | I141: 428 | J141: 7.514018692 | K141: 80.06542056 | L141: 87 | M141: 13.5 | N141: =M141+K141 -> 93.56542056 | O141: T90 | P141: FALSE | R141: FALSE | T141: =(L141-60)/3*1.5 -> 13.5 | U141: FALSE
B142: Chevrolet | C142: Corvette (C6) Coupe/Convertible | D142: 2005 | E142: 2007 | F142: 3179 | G142: 400 | H142: 400 | I142: 400 | J142: 7.9475 | K142: 78.223125 | L142: 85 | M142: 12.5 | N142: 90.723125 | O142: T90 | P142: FALSE | R142: FALSE | T142: 12.5 | U142: FALSE
B143: Chevrolet | C143: Corvette (C6) Coupe/Convertible | D143: 2008 | E143: 2013 | F143: 3208 | G143: 430 | H143: 424 | I143: 428 | J143: 7.495327103 | K143: 80.14485981 | L143: 85 | M143: 12.5 | N143: 92.64485981 | O143: T90 | P143: FALSE | R143: FALSE | T143: 12.5 | U143: FALSE
B144: Chevrolet | C144: Corvette (C6) Grand Sport Coupe | D144: 2010 | E144: 2013 | F144: 3289 | G144: 430 | H144: 424 | I144: 428 | J144: 7.684579439 | K144: 79.34053738 | L144: 90 | M144: 15 | N144: 94.34053738 | O144: T90 | P144: FALSE | R144: FALSE | T144: 15 | U144: FALSE
B145: Chevrolet | C145: Corvette (C7) Coupe Z06 | D145: 2014 | E145: 2019 | F145: 3550 | G145: 625 | H145: 635 | I145: 628.3333333 | J145: 5.649867374 | K145: 87.98806366 | L145: 100 | M145: 20 | N145: 107.9880637 | O145: T100 | P145: FALSE | R145: FALSE | T145: 20 | U145: FALSE
B146: Chevrolet | C146: Corvette (C7) Coupe Z06 Aero pack | D146: 2014 | E146: 2019 | F146: 3550 | G146: 625 | H146: 635 | I146: 628.3333333 | J146: 5.649867374 | K146: 87.98806366 | L146: 105 | M146: 22.5 | N146: 110.4880637 | O146: T110 | P146: FALSE | R146: FALSE | T146: 22.5 | U146: FALSE
B147: Chevrolet | C147: Corvette (C7) Coupe Z51 | D147: 2014 | E147: 2019 | F147: 3444 | G147: 460 | H147: 460 | I147: 460 | J147: 7.486956522 | K147: 80.18043478 | L147: 95 | M147: 17.5 | N147: 97.68043478 | O147: T90 | P147: FALSE | R147: FALSE | T147: 17.5 | U147: FALSE
B148: Chevrolet | C148: Corvette (C7) Coupe/Convertible | D148: 2014 | E148: 2019 | F148: 3347 | G148: 455 | H148: 460 | I148: 456.6666667 | J148: 7.32919708 | K148: 80.85091241 | L148: 90 | M148: 15 | N148: 95.85091241 | O148: T90 | P148: FALSE | R148: FALSE | T148: 15 | U148: FALSE
B149: Chevrolet | C149: Corvette (C7) Grand Sport | D149: 2017 | E149: 2019 | F149: 3445 | G149: 460 | H149: 465 | I149: 461.6666667 | J149: 7.462093863 | K149: 80.28610108 | L149: 100 | M149: 20 | N149: 100.2861011 | O149: T100 | P149: FALSE | R149: FALSE | T149: 20 | U149: FALSE
B150: Chevrolet | C150: Corvette (C8) | D150: 2020 | F150: 3640 | G150: 490 | H150: 465 | I150: 481.6666667 | J150: 7.557093426 | K150: 79.88235294 | L150: 105 | M150: 22.5 | N150: 102.3823529 | O150: T100 | P150: FALSE | R150: FALSE | T150: 22.5 | U150: FALSE
B151: Chevrolet | C151: Corvette (C8) Z06 | D151: 2023 | F151: 3750 | G151: 670 | H151: 470 | I151: 603.3333333 | J151: 6.215469613 | K151: 85.58425414 | L151: 115 | M151: 27.5 | N151: 113.0842541 | O151: T110 | P151: FALSE | R151: FALSE | T151: 27.5 | U151: FALSE
B152: Chevrolet | C152: Corvette (C8) Z51 | D152: 2020 | F152: 3640 | G152: 490 | H152: 465 | I152: 481.6666667 | J152: 7.557093426 | K152: 79.88235294 | L152: 110 | M152: 25 | N152: 104.8823529 | O152: T100 | P152: FALSE | R152: FALSE | T152: 25 | U152: FALSE
B153: Chevrolet | C153: SS Sedan | D153: 2016 | F153: 3946 | G153: 415 | H153: 415 | I153: 415 | J153: 9.508433735 | K153: 71.58915663 | L153: 65 | M153: 2.5 | N153: 74.08915663 | O153: T70 | P153: FALSE | R153: FALSE | T153: 2.5 | U153: FALSE
B154: Datsun | C154: 240Z | D154: 1973 | E154: 1973 | F154: 2355 | G154: 150 | H154: 146 | I154: 148.6666667 | J154: 15.84080717 | K154: 44.67656951 | L154: 55 | M154: -2.5 | N154: 42.17656951 | O154: T40 | P154: FALSE | R154: FALSE | T154: -2.5 | U154: FALSE
B155: Datsun | C155: 280Z | D155: 1975 | E155: 1978 | F155: 2692 | G155: 170 | H155: 177 | I155: 172.3333333 | J155: 15.62088975 | K155: 45.61121857 | L155: 55 | M155: -2.5 | N155: 43.11121857 | O155: T40 | P155: FALSE | R155: FALSE | T155: -2.5 | U155: FALSE
B156: Dodge | C156: Challenger Hellcat | D156: 2015 | F156: 4469 | G156: 707 | H156: 650 | I156: 688 | J156: 6.495639535 | K156: 84.39353198 | L156: 70 | M156: 5 | N156: 89.39353198 | O156: T80 | P156: FALSE | R156: FALSE | T156: 5 | U156: FALSE
B157: Dodge | C157: Challenger SRT8 | D157: 2011 | F157: 4170 | G157: 470 | H157: 470 | I157: 470 | J157: 8.872340426 | K157: 74.29255319 | L157: 60 | M157: 0 | N157: 74.29255319 | O157: T70 | P157: FALSE | R157: FALSE | T157: 0 | U157: FALSE
B158: Dodge | C158: Neon ACR | D158: 1995 | E158: 1999 | F158: 2463 | G158: 150 | H158: 133 | I158: 144.3333333 | J158: 17.06466513 | K158: 39.47517321 | L158: 60 | M158: 0 | N158: 39.47517321 | O158: T30 | P158: FALSE | R158: FALSE | T158: 0 | U158: FALSE
B159: Dodge | C159: Neon Sport | D159: 2000 | E159: 2005 | F159: 2567 | G159: 132 | H159: 130 | I159: 131.3333333 | J159: 19.54568528 | K159: 28.93083756 | L159: 55 | M159: -2.5 | N159: 26.43083756 | O159: T30 | P159: FALSE | R159: FALSE | T159: -2.5 | U159: FALSE
B160: Dodge | C160: Neon Sport (SOHC) | D160: 1997 | E160: 1997 | F160: 2491 | G160: 132 | H160: 130 | I160: 131.3333333 | J160: 18.96700508 | K160: 31.39022843 | L160: 55 | M160: -2.5 | N160: 28.89022843 | O160: T30 | P160: FALSE | R160: FALSE | T160: -2.5 | U160: FALSE
B161: Dodge | C161: Neon SRT-4 | D161: 2000 | E161: 2005 | F161: 2970 | G161: 215 | H161: 245 | I161: 225 | J161: 13.2 | K161: 55.9 | L161: 60 | M161: 0 | N161: 55.9 | O161: T50 | P161: FALSE | R161: FALSE | T161: 0 | U161: FALSE
B162: Dodge | C162: Shelby Charger Turbo | D162: 1987 | E162: 1987 | F162: 2500 | G162: 175 | H162: 175 | I162: 175 | J162: 14.28571429 | K162: 51.28571429 | L162: 30 | M162: -15 | N162: 36.28571429 | O162: T30 | P162: FALSE | R162: FALSE | T162: -15 | U162: FALSE
B163: Dodge | C163: Viper GTS | D163: 1996 | E163: 2002 | F163: 3383 | G163: 450 | H163: 490 | I163: 463.3333333 | J163: 7.301438849 | K163: 80.96888489 | L163: 80 | M163: 10 | N163: 90.96888489 | O163: T90 | P163: FALSE | R163: FALSE | T163: 10 | U163: FALSE
B164: Dodge | C164: Viper GTS | D164: 2013 | F164: 3431 | G164: 640 | H164: 560 | I164: 613.3333333 | J164: 5.594021739 | K164: 88.22540761 | L164: 90 | M164: 15 | N164: 103.2254076 | O164: T100 | P164: FALSE | R164: FALSE | T164: 15 | U164: FALSE
B165: Dodge | C165: Viper RT/10 | D165: 1992 | E165: 1995 | F165: 3284 | G165: 400 | H165: 465 | I165: 421.6666667 | J165: 7.788142292 | K165: 78.90039526 | L165: 80 | M165: 10 | N165: 88.90039526 | O165: T80 | P165: FALSE | R165: FALSE | T165: 10 | U165: FALSE
B166: Dodge | C166: Viper SRT-10 | D166: 2003 | E166: 2006 | F166: 3357 | G166: 500 | H166: 525 | I166: 508.3333333 | J166: 6.603934426 | K166: 83.93327869 | L166: 85 | M166: 12.5 | N166: 96.43327869 | O166: T90 | P166: FALSE | R166: FALSE | T166: 12.5 | U166: FALSE
B167: Dodge | C167: Viper SRT-10 | D167: 2008 | E167: 2010 | F167: 3408 | G167: 600 | H167: 560 | I167: 586.6666667 | J167: 5.809090909 | K167: 87.31136364 | L167: 85 | M167: 12.5 | N167: 99.81136364 | O167: T90 | P167: FALSE | R167: FALSE | T167: 12.5 | U167: FALSE
B168: Dodge | C168: Challenger Hellcat Redeye | D168: 2019 | F168: 4443 | G168: 797 | H168: 707 | I168: 767 | J168: 5.792698827 | K168: 87.38102999 | L168: 70 | M168: 5 | N168: 92.38102999 | O168: T90 | P168: FALSE | R168: FALSE | T168: 5 | U168: FALSE
B169: Ferrari | C169: 250 GTO | D169: 1962 | E169: 1964 | F169: 2425 | G169: 302 | H169: 246 | I169: 283.3333333 | J169: 8.558823529 | K169: 75.625 | L169: 50 | M169: -5 | N169: 70.625 | O169: T70 | P169: FALSE | R169: FALSE | T169: -5 | U169: FALSE
B170: Ferrari | C170: 308 GTB/GTS | D170: 1977 | E170: 1985 | F170: 2778 | G170: 240 | H170: 209 | I170: 229.6666667 | J170: 12.095791 | K170: 60.59288824 | L170: 65 | M170: 2.5 | N170: 63.09288824 | O170: T60 | P170: FALSE | R170: FALSE | T170: 2.5 | U170: FALSE
B171: Ferrari | C171: 328 GTB/GTS | D171: 1985 | E171: 1990 | F171: 2806 | G171: 270 | H171: 225 | I171: 255 | J171: 11.00392157 | K171: 65.23333333 | L171: 70 | M171: 5 | N171: 70.23333333 | O171: T70 | P171: FALSE | R171: FALSE | T171: 5 | U171: FALSE
B172: Ferrari | C172: Enzo | D172: 2002 | E172: 2004 | F172: 3010 | G172: 651 | H172: 485 | I172: 595.6666667 | J172: 5.053161724 | K172: 90.52406267 | L172: 105 | M172: 22.5 | N172: 113.0240627 | O172: T110 | P172: FALSE | R172: FALSE | T172: 22.5 | U172: FALSE
B173: Ferrari | C173: F355 Berlinetta | D173: 1994 | E173: 1999 | F173: 2976 | G173: 380 | H173: 286 | I173: 348.6666667 | J173: 8.535372849 | K173: 75.72466539 | L173: 85 | M173: 12.5 | N173: 88.22466539 | O173: T80 | P173: FALSE | R173: FALSE | T173: 12.5 | U173: FALSE
B174: Ferrari | C174: F360 Modena | D174: 1999 | E174: 2005 | F174: 3197 | G174: 400 | H174: 275 | I174: 358.3333333 | J174: 8.921860465 | K174: 74.08209302 | L174: 90 | M174: 15 | N174: 89.08209302 | O174: T80 | P174: FALSE | R174: FALSE | T174: 15 | U174: FALSE
B175: Ferrari | C175: F40 | D175: 1987 | E175: 1992 | F175: 2400 | G175: 478 | H175: 425 | I175: 460.3333333 | J175: 5.213613324 | K175: 89.84214337 | L175: 85 | M175: 12.5 | N175: 102.3421434 | O175: T100 | P175: FALSE | R175: FALSE | T175: 12.5 | U175: FALSE
B176: Ferrari | C176: F430 | D176: 2004 | E176: 2009 | F176: 3197 | G176: 483 | H176: 343 | I176: 436.3333333 | J176: 7.32696715 | K176: 80.86038961 | L176: 95 | M176: 17.5 | N176: 98.36038961 | O176: T90 | P176: FALSE | R176: FALSE | T176: 17.5 | U176: FALSE
B177: Ferrari | C177: F458 Italia | D177: 2010 | F177: 3274 | G177: 562 | H177: 398 | I177: 507.3333333 | J177: 6.453350854 | K177: 84.57325887 | L177: 95 | M177: 17.5 | N177: 102.0732589 | O177: T100 | P177: FALSE | R177: FALSE | T177: 17.5 | U177: FALSE
B178: Fiat | C178: 500 Abarth | D178: 2008 | F178: 2500 | G178: 133 | H178: 130 | I178: 132 | J178: 18.93939394 | K178: 31.50757576 | L178: 55 | M178: -2.5 | N178: 29.00757576 | O178: T30 | P178: FALSE | R178: FALSE | T178: -2.5 | U178: FALSE
B179: Ford | C179: Escort ZX2 | D179: 1998 | E179: 1998 | F179: 2531 | G179: 130 | H179: 127 | I179: 129 | J179: 19.62015504 | K179: 28.61434109 | L179: 55 | M179: -2.5 | N179: 26.11434109 | O179: T30 | P179: FALSE | R179: FALSE | T179: -2.5 | U179: FALSE
B180: Ford | C180: Fiesta ST | D180: 2015 | F180: 2742 | G180: 197 | H180: 202 | I180: 198.6666667 | J180: 13.80201342 | K180: 53.34144295 | L180: 60 | M180: 0 | N180: 53.34144295 | O180: T50 | P180: FALSE | R180: FALSE | T180: 0 | U180: FALSE
B181: Ford | C181: Focus Coupe | D181: 2008 | E181: 2011 | F181: 2588 | G181: 140 | H181: 136 | I181: 138.6666667 | J181: 18.66346154 | K181: 32.68028846 | L181: 55 | M181: -2.5 | N181: 30.18028846 | O181: T30 | P181: FALSE | R181: FALSE | T181: -2.5 | U181: FALSE
B182: Ford | C182: Focus RS | D182: 2016 | F182: 3459 | G182: 350 | H182: 350 | I182: 350 | J182: 9.882857143 | K182: 69.99785714 | L182: 85 | M182: 12.5 | N182: 82.49785714 | O182: T80 | P182: FALSE | R182: FALSE | T182: 12.5 | U182: FALSE
B183: Ford | C183: Focus SE | D183: 2000 | E183: 2004 | F183: 2546 | G183: 100 | H183: 125 | I183: 108.3333333 | J183: 23.50153846 | K183: 12.11846154 | L183: 55 | M183: -2.5 | N183: 9.618461538 | O183: T30 | P183: FALSE | R183: FALSE | T183: -2.5 | U183: FALSE
B184: Ford | C184: Focus Sedan | D184: 2008 | E184: 2011 | F184: 2623 | G184: 140 | H184: 136 | I184: 138.6666667 | J184: 18.91586538 | K184: 31.60757212 | L184: 55 | M184: -2.5 | N184: 29.10757212 | O184: T30 | P184: FALSE | R184: FALSE | T184: -2.5 | U184: FALSE
B185: Ford | C185: Focus ST | D185: 2012 | F185: 3223 | G185: 252 | H185: 270 | I185: 258 | J185: 12.49224806 | K185: 58.90794574 | L185: 70 | M185: 5 | N185: 63.90794574 | O185: T60 | P185: FALSE | R185: FALSE | T185: 5 | U185: FALSE
B186: Ford | C186: Focus SVT | D186: 2002 | E186: 2004 | F186: 2769 | G186: 170 | H186: 145 | I186: 161.6666667 | J186: 17.12783505 | K186: 39.20670103 | L186: 55 | M186: -2.5 | N186: 36.70670103 | O186: T30 | P186: FALSE | R186: FALSE | T186: -2.5 | U186: FALSE
B187: Ford | C187: Focus ZX3 | D187: 2000 | E187: 2004 | F187: 2551 | G187: 130 | H187: 135 | I187: 131.6666667 | J187: 19.37468354 | K187: 29.65759494 | L187: 55 | M187: -2.5 | N187: 27.15759494 | O187: T30 | P187: FALSE | R187: FALSE | T187: -2.5 | U187: FALSE
B188: Ford | C188: Focus ZX4 S/SE/SES | D188: 2005 | E188: 2007 | F188: 2677 | G188: 136 | H188: 133 | I188: 135 | J188: 19.82962963 | K188: 27.72407407 | L188: 55 | M188: -2.5 | N188: 25.22407407 | O188: T30 | P188: FALSE | R188: FALSE | T188: -2.5 | U188: FALSE
B189: Ford | C189: Focus ZX4 ST | D189: 2005 | E189: 2007 | F189: 2677 | G189: 151 | H189: 154 | I189: 152 | J189: 17.61184211 | K189: 37.14967105 | L189: 60 | M189: 0 | N189: 37.14967105 | O189: T30 | P189: FALSE | R189: FALSE | T189: 0 | U189: FALSE
B190: Ford | C190: GT | D190: 2005 | E190: 2006 | F190: 3351 | G190: 550 | H190: 500 | I190: 533.3333333 | J190: 6.283125 | K190: 85.29671875 | L190: 85 | M190: 12.5 | N190: 97.79671875 | O190: T90 | P190: FALSE | R190: FALSE | T190: 12.5 | U190: FALSE
B191: Ford | C191: Mustang | D191: 1964 | E191: 1965 | F191: 2562 | G191: 271 | H191: 312 | I191: 284.6666667 | J191: 9 | K191: 73.75 | L191: 10 | M191: -25 | N191: 48.75 | O191: T40 | P191: FALSE | R191: FALSE | T191: -25 | U191: FALSE
B192: Ford | C192: Mustang Boss | D192: 2012 | E192: 2013 | F192: 3632 | G192: 444 | H192: 380 | I192: 422.6666667 | J192: 8.593059937 | K192: 75.47949527 | L192: 70 | M192: 5 | N192: 80.47949527 | O192: T80 | P192: FALSE | R192: FALSE | T192: 5 | U192: FALSE
B193: Ford | C193: Mustang Boss 302 | D193: 1969 | E193: 1970 | F193: 3384 | G193: 290 | H193: 290 | I193: 290 | J193: 11.66896552 | K193: 62.40689655 | L193: 15 | M193: -22.5 | N193: 39.90689655 | O193: T30 | P193: FALSE | R193: FALSE | T193: -22.5 | U193: FALSE
B194: Ford | C194: Mustang Cobra | D194: 1996 | E194: 1998 | F194: 3404 | G194: 305 | H194: 300 | I194: 303.3333333 | J194: 11.22197802 | K194: 64.30659341 | L194: 50 | M194: -5 | N194: 59.30659341 | O194: T50 | P194: FALSE | R194: FALSE | T194: -5 | U194: FALSE
B195: Ford | C195: Mustang Cobra | D195: 1999 | E195: 2001 | F195: 3430 | G195: 320 | H195: 317 | I195: 319 | J195: 10.7523511 | K195: 66.30250784 | L195: 60 | M195: 0 | N195: 66.30250784 | O195: T60 | P195: FALSE | R195: FALSE | T195: 0 | U195: FALSE
B196: Ford | C196: Mustang Cobra | D196: 2003 | E196: 2004 | F196: 3665 | G196: 390 | H196: 390 | I196: 390 | J196: 9.397435897 | K196: 72.06089744 | L196: 60 | M196: 0 | N196: 72.06089744 | O196: T70 | P196: FALSE | R196: FALSE | T196: 0 | U196: FALSE
B197: Ford | C197: Mustang Cobra GT-40 | D197: 1994 | E197: 1995 | F197: 3524 | G197: 240 | H197: 285 | I197: 255 | J197: 13.81960784 | K197: 53.26666667 | L197: 50 | M197: -5 | N197: 48.26666667 | O197: T40 | P197: FALSE | R197: FALSE | T197: -5 | U197: FALSE
B198: Ford | C198: Mustang Cobra R | D198: 1995 | E198: 1995 | F198: 3354 | G198: 280 | H198: 343 | I198: 301 | J198: 11.14285714 | K198: 64.64285714 | L198: 50 | M198: -5 | N198: 59.64285714 | O198: T50 | P198: FALSE | R198: FALSE | T198: -5 | U198: FALSE
B199: Ford | C199: Mustang Cobra R | D199: 2000 | E199: 2000 | F199: 3589 | G199: 385 | H199: 385 | I199: 385 | J199: 9.322077922 | K199: 72.38116883 | L199: 60 | M199: 0 | N199: 72.38116883 | O199: T70 | P199: FALSE | R199: FALSE | T199: 0 | U199: FALSE
B200: Ford | C200: Mustang GT | D200: 1994 | E200: 1995 | F200: 3276 | G200: 215 | H200: 285 | I200: 238.3333333 | J200: 13.74545455 | K200: 53.58181818 | L200: 45 | M200: -7.5 | N200: 46.08181818 | O200: T40 | P200: FALSE | R200: FALSE | T200: -7.5 | U200: FALSE
B201: Ford | C201: Mustang GT | D201: 1996 | E201: 1997 | F201: 3277 | G201: 215 | H201: 285 | I201: 238.3333333 | J201: 13.74965035 | K201: 53.56398601 | L201: 45 | M201: -7.5 | N201: 46.06398601 | O201: T40 | P201: FALSE | R201: FALSE | T201: -7.5 | U201: FALSE
B202: Ford | C202: Mustang GT | D202: 1998 | E202: 2004 | F202: 3324 | G202: 260 | H202: 302 | I202: 274 | J202: 12.13138686 | K202: 60.44160584 | L202: 50 | M202: -5 | N202: 55.44160584 | O202: T50 | P202: FALSE | R202: FALSE | T202: -5 | U202: FALSE
B203: Ford | C203: Mustang GT | D203: 2005 | E203: 2009 | F203: 3555 | G203: 300 | H203: 320 | I203: 306.6666667 | J203: 11.5923913 | K203: 62.73233696 | L203: 60 | M203: 0 | N203: 62.73233696 | O203: T60 | P203: FALSE | R203: FALSE | T203: 0 | U203: FALSE
B204: Ford | C204: Mustang GT | D204: 2010 | E204: 2010 | F204: 3533 | G204: 315 | H204: 325 | I204: =G204*(2/3)+H204*(1/3) -> 318.3333333 | J204: =F204/I204 -> 11.09842932 | K204: =J204*-4.25+112 -> 64.83167539 | L204: 60 | M204: =(L204-60)/3*1.5 -> 0 | N204: 64.83167539 | O204: =INDEX(Base_Classes, MATCH($N204, Base_Assessments, 1)+1) -> T60 | P204: =OR(R204,A204) -> FALSE | R204: FALSE | T204: 0 | U204: =AND(P204,$S$9) -> FALSE
... 303 more rows

Sheet Engine
A1: =CONCATENATE(Title, " ", Version) -> COMSCC 2024 v12.0
A3: Touring Class Summary
A5: Engine Modifications Worksheet
A6: Click "Select" where appropriate and enter information in the yellow cells…
A8: Select or TRUE | B8: Assessment | C8: Description | G8: =IF(H8>0, TRUE, FALSE) -> FALSE | H8: =COUNTIF(H9:H58, TRUE) -> 0 | J8: =COUNTIF(J9:J58,"Dyno") -> 0
B9: 1 | C9: Reprogrammed Factory Trim (includes ROM chips) ECU, naturally aspirated engine | D9: FALSE | E9: FALSE | F9: =IF(D9, B9, 0) -> 0 | G9: =COUNTIF(D9:D12, TRUE) -> 0 | H9: =G9>1 -> FALSE | I9: =AND(D9, $H$9) -> FALSE | K9: =INDEX(Public_Engine_Mods,1,6)>0 -> FALSE
B10: 2 | C10: Non-Factory Trim ECU, naturally aspirated engine | D10: FALSE | E10: FALSE | F10: =IF(D10, B10, 0) -> 0 | G10: =COUNTIF(D9:D12, TRUE) -> 0 | I10: =AND(D10, $H$9) -> FALSE | K10: =INDEX(Public_Engine_Mods,2,6)>0 -> FALSE
B11: 3 | C11: Reprogrammed Factory Trim (includes ROM chips) ECU, forced induction engine air/fuel change only. If applicable, additional points must be added for an increase in boost. | D11: FALSE | E11: FALSE | F11: 0 | G11: =COUNTIF(D9:D12, TRUE) -> 0 | I11: =AND(D11, $H$9) -> FALSE
B12: 4 | C12: Non-Factory Trim ECU, forced induction engine engine air/fuel change only. If applicable, additional points must be added for an increase in boost. | D12: FALSE | E12: FALSE | F12: 0 | G12: =COUNTIF(D9:D12, TRUE) -> 0 | I12: =AND(D12, $H$9) -> FALSE
B13: 2 | C13: Turbo Boost increase <50% | D13: =OR(E13,A13) -> FALSE | E13: FALSE | F13: 0 | G13: =COUNTIF(D13:D14, TRUE) -> 0 | H13: =G13>1 -> FALSE | I13: =AND(D13, $H$13) -> FALSE
B14: 4 | C14: Turbo Boost increase >50% | D14: FALSE | E14: FALSE | F14: 0 | G14: =COUNTIF(D13:D14, TRUE) -> 0 | I14: =AND(D14, $H$13) -> FALSE
B15: 1 | C15: Non-Factory Trim/modified air intake before the throttle body | D15: FALSE | E15: FALSE | F15: 0 | G15: =COUNTIF(D15:D16, TRUE) -> 0 | H15: =G15>1 -> FALSE | I15: =AND(D15, $H$15) -> FALSE
B16: 1 | C16: Non-factory trim/modified headlight to allow increased or cooler air flow to engine air intake, unless already taking one point for cold air intake. | D16: FALSE | E16: FALSE | F16: 0 | G16: =COUNTIF(D15:D16, TRUE) -> 0 | I16: =AND(D16, $H$15) -> FALSE
B17: 1 | C17: Non-Factory Trim/modified throttle body | D17: FALSE | E17: FALSE | F17: 0 | I17: FALSE
B18: 1 | C18: Non-Factory Trim/modified fuel delivery system, except fuel pump(s) (i.e. fuel injectors, fuel rails, fuel regulators) | D18: FALSE | E18: FALSE | F18: 0 | I18: FALSE
B19: 1 | C19: Non-Factory Trim/modified intake manifold 1-6 cylinder engines, including manifold porting | D19: FALSE | E19: FALSE | F19: 0 | G19: =COUNTIF(D19:D20, TRUE) -> 0 | H19: =G19>1 -> FALSE | I19: =AND(D19, $H$19) -> FALSE
B20: 2 | C20: Non-Factory Trim/modified intake manifold 7-12 cylinder engines, including manifold porting | D20: FALSE | E20: FALSE | F20: 0 | G20: =COUNTIF(D19:D20, TRUE) -> 0 | I20: =AND(D20, $H$19) -> FALSE
B21: 3 | C21: Water-alcohol injection System | D21: FALSE | E21: FALSE | F21: 0 | I21: FALSE
B22: Dyno | C22: Non-Factory Trim/modified supercharger or turbocharger, any location | D22: FALSE | E22: FALSE | F22: 0 | H22: =G22>1 -> FALSE | I22: FALSE | J22: =F22 -> 0
B23: 3 | C23: Non-Factory Trim/modified supercharger pulley | D23: FALSE | E23: FALSE | F23: 0 | I23: FALSE
B24: 3 | C24: Non-Factory Trim/modified boost controller or vacuum lines that control boost | D24: FALSE | E24: FALSE | F24: 0 | I24: FALSE
B25: 1 | C25: Non-Factory Trim/modified wastegate, wastegate actuator | D25: FALSE | E25: FALSE | F25: 0 | I25: FALSE
B26: 2 | C26: Non-Factory Trim/modified intercooler | D26: FALSE | E26: FALSE | F26: 0 | G26: =COUNTIF(D26:D27, TRUE) -> 0 | I26: FALSE
B27: 1 | C27: Non-Factory Trim/modified intercooler pipes only | D27: FALSE | E27: FALSE | F27: 0 | G27: =COUNTIF(D26:D27, TRUE) -> 0 | I27: FALSE
B28: Dyno | C28: Non-Factory Trim/modified camshafts, rocker arms, pushrods, or cam gears that adjust cam timing or lift | D28: FALSE | E28: FALSE | F28: 0 | G28: =COUNTIF(D28:D31, TRUE) -> 0 | H28: =G28>1 -> FALSE | I28: FALSE | J28: =F28 -> 0
B29: Dyno | C29: Ported/polished Factory Trim cylinder heads | D29: FALSE | E29: FALSE | F29: 0 | G29: 0 | I29: FALSE | J29: =F29 -> 0
B30: Dyno | C30: Non-Factory Trim cylinder heads | D30: FALSE | E30: FALSE | F30: 0 | G30: 0 | I30: FALSE | J30: =F30 -> 0
B31: Dyno | C31: Non-Factory Trim/modified engine intake/exhaust valves | D31: FALSE | E31: FALSE | F31: 0 | G31: 0 | I31: FALSE | J31: =F31 -> 0
B32: Dyno | C32: Increased displacement by more than 1% | D32: FALSE | E32: FALSE | F32: 0 | G32: 0 | H32: =G32>1 -> FALSE | I32: FALSE | J32: =F32 -> 0
B33: 0 | C33: Increase compression ratio by .50 or less | D33: FALSE | E33: FALSE | F33: 0 | G33: =COUNTIF(D33:D34, TRUE) -> 0 | H33: =G33>1 -> FALSE | I33: =AND(D33, $H$33) -> FALSE
B34: Dyno | C34: Increase compression ratio greater than .50 | D34: FALSE | E34: FALSE | F34: 0 | G34: =COUNTIF(D33:D34, TRUE) -> 0 | I34: =AND(D34, $H$33) -> FALSE | J34: =F34 -> 0
B35: 1 | C35: Dry sump engine oil system | D35: FALSE | E35: FALSE | F35: 0 | I35: FALSE
B36: 1 | C36: Non-Factory Trim/modified header 1-6 cyl (pre-cat exhaust change) | D36: FALSE | E36: FALSE | F36: 0 | G36: =COUNTIF(D36:D37, TRUE) -> 0 | H36: =G36>1 -> FALSE | I36: =AND(D36, $H$36) -> FALSE
B37: 2 | C37: Non-Factory Trim/modified header 7-12 cyl (pre-cat exhaust change) | D37: FALSE | E37: FALSE | F37: 0 | G37: =COUNTIF(D36:D37, TRUE) -> 0 | I37: =AND(D37, $H$36) -> FALSE
B38: 1 | C38: Non-Factory Trim/modified exhaust beyond the catalytic converter (e.g. cat back exhaust) | D38: FALSE | E38: FALSE | F38: 0 | G38: =COUNTIF(D38:D41, TRUE) -> 0 | I38: FALSE
B39: 1 | C39: Non-Factory Trim/modified catalytic converter(s) | D39: FALSE | E39: FALSE | F39: 0 | G39: =COUNTIF(D39:D40, TRUE) -> 0 | H39: =G39>1 -> FALSE | I39: =AND(D39, $H$39) -> FALSE
B40: 1 | C40: Complete removal or “gutting” of OEM catalytic converter(s) (i.e. “test pipe” in place of catalytic converter) | D40: FALSE | E40: FALSE | F40: 0 | G40: =COUNTIF(D39:D40, TRUE) -> 0 | I40: =AND(D40, $H$39) -> FALSE
B41: 1 | C41: Non-Factory Trim/modified power steering, crank pulley | D41: FALSE | E41: FALSE | F41: 0 | I41: FALSE
B42: 1 | C42: Non-Factory Trim/modified/deleted engine or accessory fan and/or other engine accessories not otherwise listed | D42: FALSE | E42: FALSE | F42: 0 | I42: FALSE
B43: Dyno | C43: Street Port, rotary engines | D43: FALSE | E43: FALSE | F43: 0 | G43: =COUNTIF(D43:D44, TRUE) -> 0 | H43: =G43>1 -> FALSE | I43: FALSE | J43: =F43 -> 0
B44: Dyno | C44: Bridge Port, rotary engines | D44: FALSE | E44: FALSE | F44: 0 | G44: =COUNTIF(D43:D44, TRUE) -> 0 | I44: FALSE | J44: =F44 -> 0
B45: Dyno | C45: Peripheral Port, rotary engines | D45: FALSE | E45: FALSE | F45: 0 | I45: FALSE | J45: =F45 -> 0
B46: Dyno | C46: Non-Factory Trim/modified Pistons, Rods | D46: FALSE | E46: FALSE | F46: 0 | I46: FALSE | J46: =F46 -> 0
B47: Dyno | C47: Vehicles tuned and running ethanol content greater than 15%. (E.g. a vehicle tuned to run on e85) | D47: FALSE | E47: FALSE | F47: 0 | I47: FALSE | J47: =F47 -> 0
B48: 0 | C48: Any type of commercially available gasoline or diesel fuel | D48: FALSE | E48: FALSE | F48: 0
B49: 0 | C49: Non-Factory Trim/modified fuses, relays, wiring, or addition of Power Distribution Modules | D49: FALSE | E49: FALSE | F49: 0
B50: 0 | C50: Non-Factory Trim hoses, belts, clamps | D50: FALSE | E50: FALSE | F50: 0
B51: 0 | C51: Non-Factory Trim air or fuel filters | D51: FALSE | E51: FALSE | F51: 0
B52: 0 | C52: Non-Factory Trim radiator | D52: FALSE | E52: FALSE | F52: 0
B53: 0 | C53: Non-Factory Trim battery, starter motor, alternator, spark plugs, spark plug wires, ignition coils | D53: FALSE | E53: FALSE | F53: 0
B54: 0 | C54: Non-Factory Trim/modifications to oil system | D54: FALSE | E54: FALSE | F54: 0
B55: 0 | C55: Non-Factory Trim/modifications/number of fuel pumps | D55: FALSE | E55: FALSE | F55: 0
B56: 0 | C56: Non-Factory Trim/modified muffler tips/components designed strictly for the purposes of reducing sound with no measurable or theoretical performance advantage (e.g. exhaust tip turn-down or second muffler) | D56: FALSE | E56: FALSE | F56: 0
B57: 0 | C57: Factory specification engine rebuild and head shave | D57: FALSE | E57: FALSE | F57: 0
B58: 0 | C58: Accessories and/or gauges | D58: FALSE | E58: FALSE | F58: 0
A59: Total | B59: =IF(G8, "Select Error", IF(J8>0,"Dyno Required",SUM(F9:F58))) -> 0
A60: Note – Mazda Rotary Engines are to be considered 4 cylinder engines for the purposes of Engine Modification point Assessments outlined in the table above
A63: Engine Reclass Option
A64: Dyno reclass option
C65: Description | F65: =VLOOKUP("Dynapack",dyno_names, 1,FALSE) -> 
A66: Horsepower | C66: For engine swaps or elective dyno based classing, competitor must provide peak horsepower figure to the Steward for evaluation; Scrutineer may request supporting documentation at the Steward’s discretion
A67: Torque | D67: =IF(B68="Crank", 1, IF(B68="Wheel", 1/(1-F74),0)) -> 0
A68: Type | B68: (Choose) | C68: Select Crank HP or Wheel HP Dyno measurements
A69: Drivetrain type | C69: Select 2WD or AWD | F69: Dynojet | G69: 0.13 | H69: 0.16
A70: Dyno type | B70: DynoJet | C70: Starting with the 2018 season Dynojet is the only official dyno measurement | D70: =IF(B69="AWD",H71,H70) -> 0
A71: =IF(AND(ISNUMBER(B66),ISNUMBER(B67)), (B66*(2/3)*D67)+(B67*(1/3)*D67), "") ->  | B71: Scaled Power | C71: Scaled result using 2/3 HP + 1/3 Torque + Drivetrain loss | D71: =IF(B69="AWD",3,2) -> 2
A72: =IF($D72<-2, -2, $D72) ->  | B72: Points | C72: Number of points above base car assessment | D72: =IF(ISNUMBER(A71), ((Car_Base_Weight/A71)*-4.25+112)-Car_Scaled_Power, "") -> 
A74: Total Engine Modifications Assessment | B74: =IF(J8>0,IF(ISNUMBER(Dyno_Points),Dyno_Points,"Dyno missing"),IF(ISNUMBER(Scrutineer_Engine_Points),Scrutineer_Engine_Points,EngineModsTotal)) -> 0 | C74: =IF(J8>0,IF(ISNUMBER(A72),"Using Dyno Points","Dyno Required"),IF(ISNUMBER(Scrutineer_Engine_Points),"Using Dyno Points","Using Engine Points Total")) -> Using Engine Points Total | F74: =VLOOKUP(B70,F69:H73,D71,FALSE) -> 0.13
B76: Go to next sheet (Drivetrain
B82: `

Sheet Drivetrain
A1: =CONCATENATE(Title, " ", Version) -> COMSCC 2024 v12.0
A3: Touring Class Summary
A5: Drivetrain Modifications Worksheet
A6: Click "Select" where appropriate
A8: Select or TRUE | B8: Assessment | C8: Description | G8: =IF(H8>0, TRUE, FALSE) -> FALSE | H8: =COUNTIF(H9:H30, TRUE) -> 0
B9: 6 | C9: Non-Factory Trim sequential gearbox | D9: FALSE | E9: =OR(D9, A9) -> FALSE | F9: =COUNTIF(D9:D18, TRUE) -> 0 | G9: =IF(E9, B9, 0) -> 0 | H9: =J9>1 -> FALSE | I9: =AND(D9,H$9) -> FALSE | J9: =COUNTIF(E9:E18, TRUE) -> 0
B10: 4 | C10: Non-Factory Trim non-sequential (H pattern) Dogbox gearbox | D10: FALSE | E10: =OR(D10, A10) -> FALSE | G10: =IF(E10, B10, 0) -> 0 | I10: FALSE
B11: 3 | C11: Dual clutch transmission - DSG, DCT, PDK, etc | D11: FALSE | E11: =OR(D11, A11) -> FALSE | G11: =IF(E11, B11, 0) -> 0 | I11: FALSE
B12: 3 | C12: 7 speed or more automatic transmission - GM HydraMatic 10L90 and 10L80, Ford 10R80, ZF HP8, Mercedes 7G-Tronic etc | D12: FALSE | E12: =OR(D12, A12) -> FALSE | G12: 0 | I12: FALSE
B13: 1 | C13: Automated single clutch manual transmission - SMG, Ferrari F1, Lambo E-Gear etc | D13: FALSE | E13: =OR(D13, A13) -> FALSE | G13: 0 | I13: FALSE
B14: 1 | C14: Manual tranmission with factory autoblip (Nissan 370Z, BMW M2, C7 Corvette, Porsche) or aftermarket add-on | D14: FALSE | E14: FALSE | G14: 0 | I14: FALSE
B15: 0 | C15: 5 or 6 speed manual transmission | D15: FALSE | E15: =OR(D15, A15) -> FALSE | G15: 0 | I15: FALSE
B16: -1 | C16: 3 or 4 speed manual transmission | D16: FALSE | E16: =OR(D16, A16) -> FALSE | G16: 0 | I16: FALSE
B17: -2 | C17: Automatic transmission with 6 speeds or less | D17: FALSE | E17: =OR(D17, A17) -> FALSE | G17: 0 | I17: FALSE
B18: -2 | C18: CVT Transmission | D18: FALSE | E18: =OR(D18, A18) -> FALSE | G18: 0 | I18: FALSE
B19: 1 | C19: Non-Factory Trim/modified final drive ratio | D19: FALSE | E19: FALSE | G19: 0 | I19: FALSE
B20: 0 | C20: Non-Factory Trim/modified LSD if vehicle is equipped with LSD from the factory or was a factory option | D20: FALSE | E20: FALSE | F20: =COUNTIF(D20:D21, TRUE) -> 0 | G20: 0 | H20: =J20>1 -> FALSE | I20: =AND(D20,H$20) -> FALSE | J20: =COUNTIF(E20:E21, TRUE) -> 0
B21: 1 | C21: Non-Factory Trim/modified LSD if vehicle is not equipped with LSD from the factory or was not a factory option | D21: FALSE | E21: FALSE | G21: 0 | I21: =AND(D21,H$20) -> FALSE
B22: 2 | C22: Non-Factory Trim/modified traction control (ie via Non-Factory Trim ECU mapping) | D22: FALSE | E22: FALSE | G22: 0 | I22: FALSE
B23: 2 | C23: Non-Factory Trim/modified electronically controlled center differential mapping (ie GEMS center diff controller for Mitsubishi Evo, Subaru STi) | D23: FALSE | E23: FALSE | G23: 0 | I23: FALSE
B24: 1 | C24: Non-Factory Trim/modified half shafts or driveshafts including carbon fiber and aluminium driveshafts | D24: FALSE | E24: FALSE | G24: 0 | I24: FALSE
B25: 2 | C25: Relocation of transmission location via altered mounts | D25: FALSE | E25: FALSE | G25: 0 | I25: FALSE
B26: 0.5 | C26: Non-Factory Trim/modified clutch, pressure plate, and/or clutch assembly | D26: FALSE | E26: FALSE | G26: 0 | I26: FALSE
B27: 0 | C27: Non-Factory Trim/modified flywheel | D27: FALSE | E27: =OR(D27, A27) -> FALSE | G27: 0 | I27: FALSE
B28: 0 | C28: Non-Factory Trim/modified motor, transmission, differential, and/or other drivetrain mounts, including metallic and non-metallic mounts | D28: FALSE | E28: FALSE | G28: 0 | I28: FALSE
B29: 0 | C29: Non-Factory Trim/modified shifter, including bushings, lever, etc. | D29: FALSE | E29: FALSE | G29: 0 | I29: FALSE
B30: 0 | C30: Enabling or disabling of Factory Trim traction control | D30: FALSE | E30: FALSE | G30: 0 | I30: FALSE
A31: Total | B31: =IF(G8, "Select Error", SUM(G9:G30)) -> 0
A33: Total Drivetrain Modifications Assessment | B33: =Total -> 0
A35: Go to previous sheet (Engine) | B35: Go to next sheet (Suspension)

Sheet Suspension
A1: =CONCATENATE(Title, " ", Version) -> COMSCC 2024 v12.0
A3: Touring Class Summary
A5: Suspension Modifications Worksheet
A6: Click "Select" where appropriate
A8: Select or TRUE | B8: Assessment | C8: Description | G8: =IF(H8>0, TRUE, FALSE) -> FALSE | H8: =COUNTIF(H10:H38, TRUE) -> 0
B9: 1 | C9: Non-Factory Trim non-adjustable shocks, struts, dampers | D9: =OR(E9,A9) -> FALSE | E9: FALSE | F9: =IF(D9, B9, 0) -> 0 | G9: =COUNTIF(D9:D12, TRUE) -> 0 | H9: =G9>1 -> FALSE | I9: =AND(D9,H$9) -> FALSE
B10: 1 | C10: Non-Factory Trim 1-way adjustable shocks, struts, dampers | D10: =OR(E10,A10) -> FALSE | E10: FALSE | F10: =IF(D10, B10, 0) -> 0 | I10: =AND(D10,H$9) -> FALSE
B11: 2 | C11: Non-Factory Trim 2-way adjustable shocks, struts, dampers | D11: =OR(E11,A11) -> FALSE | E11: FALSE | F11: =IF(D11, B11, 0) -> 0 | I11: =AND(D11,H$9) -> FALSE
B12: 3 | C12: Non-Factory Trim 3-way (or more) adjustable shocks, struts, dampers | D12: FALSE | E12: FALSE | F12: =IF(D12, B12, 0) -> 0 | I12: =AND(D12,H$9) -> FALSE
B13: 1 | C13: Non-Factory Trim shocks, struts, dampers with piggyback canister or external remote canister – note: must also take points for shocks/struts/dampers as listed above | D13: FALSE | E13: FALSE | F13: =IF(D13, B13, 0) -> 0 | I13: FALSE
B14: 2 | C14: Non-adjustable non-Factory Trim coil springs, leaf springs, or torsion bars (or non-modified factory height adjustment) | D14: FALSE | E14: FALSE | F14: 0 | G14: =COUNTIF(D14:D15, TRUE) -> 0 | H14: =G14>1 -> FALSE | I14: =AND(D14,H$14) -> FALSE
B15: 3 | C15: Height adjustable non-Factory Trim coil springs, leaf springs, or torsion bars (or springs with modified factory height adjustment) | D15: FALSE | E15: FALSE | F15: 0 | I15: =AND(D15,H$14) -> FALSE
B16: 1 | C16: Torsion bar to coil spring conversion | D16: FALSE | E16: FALSE | F16: 0
B17: 1 | C17: Non-Factory Trim sway bars | D17: FALSE | E17: FALSE | F17: 0
B18: 1 | C18: Non-Factory Trim engine bracing (not including motor and other drivetrain mounts) | D18: FALSE | E18: FALSE | F18: 0
B19: 1 | C19: Non-Factory Trim/Modified Control Arms or Non-Factory Trim/Modified Trailing or Camber Arms of different dimensions than Factory Trim | D19: FALSE | E19: FALSE | F19: 0
B20: 2 | C20: Modification of wishbone suspension upright | D20: FALSE | E20: FALSE | F20: 0
B21: 1 | C21: Non-Factory Trim subframe that does not alter suspension geometry | D21: FALSE | E21: FALSE | F21: 0
B22: 1 | C22: Non-Factory Trim/modified Watts Link | D22: FALSE | E22: FALSE | F22: 0
B23: 1 | C23: Non-Factory Trim/modified panhard bar | D23: FALSE | E23: FALSE | F23: 0
B24: 2 | C24: Non-Factory Trim torque bar | D24: FALSE | E24: FALSE | F24: 0 | G24: =COUNTIF(D24:D25, TRUE) -> 0 | H24: =G24>1 -> FALSE | I24: =AND(D24,H$24) -> FALSE
B25: 1 | C25: Modify OEM torque bar | D25: FALSE | E25: FALSE | F25: 0 | I25: =AND(D25,H$24) -> FALSE
B26: 1 | C26: Non-Factory Trim suspension bushings or spherical bearings, except rubber or polyurethane | D26: FALSE | E26: FALSE | F26: 0 | I26: FALSE
B27: 1 | C27: Non-Factory Trim/modified suspension components which enable alignment settings beyond Factory Trim capability (does not apply to coil springs, leaf springs, or torsion bars); note - additional points may need to be taken for specific non-Factory Trim suspension components if listed elsewhere in this section | D27: FALSE | E27: FALSE | F27: 0 | I27: FALSE
B28: 0 | C28: Non-Factory Trim bracing, including strut/shock tower brace, chassis brace(s) (e.g. X-brace or cross-bar) | D28: FALSE | E28: FALSE | F28: 0 | I28: FALSE
B29: 0 | C29: Custom Alignment settings, including caster, camber, or toe, regardless of factory recommendations; note: modifications to Factory-trim suspension components for the purposes of alignment adjustment must be assessed separately | D29: FALSE | E29: FALSE | F29: 0 | I29: FALSE
B30: 0 | C30: Non-Factory Trim suspension bushings, either rubber or polyurethane | D30: FALSE | E30: FALSE | F30: 0 | I30: FALSE
B31: 0 | C31: Non-Factory Trim suspension bushing limiters of any material; note - points must also be taken for bushing material, if applicable | D31: FALSE | E31: FALSE | F31: 0 | I31: FALSE
B32: 0 | C32: Removal of swaybars | D32: FALSE | E32: FALSE | F32: 0 | I32: FALSE
B33: 0 | C33: Non-Factory Trim sway bar endlinks | D33: FALSE | E33: FALSE | F33: 0 | I33: FALSE
B34: 0 | C34: Non-Factory Trim eccentric camber bolts | D34: FALSE | E34: FALSE | F34: 0 | I34: FALSE
B35: 0 | C35: Non-Factory Trim camber adjusting ball joints | D35: FALSE | E35: FALSE | F35: 0 | I35: FALSE
B36: 0 | C36: Modified steering rack from power assist to manual or manual to power assist | D36: FALSE | E36: FALSE | F36: 0 | I36: FALSE
B37: 0 | C37: Suspension re-enforcement provided by installation of roll bar or roll cage that adheres to requirements listed in the Car Requirements section of the rules | D37: FALSE | E37: FALSE | F37: 0 | I37: FALSE
B38: 0 | C38: Disabling or enabling of Factory Trim Electronic Stability Control systems | D38: FALSE | E38: FALSE | F38: 0 | I38: FALSE
A39: Total | B39: =IF(G8, "Select Error", SUM(F9:F38)) -> 0
A41: Total Suspension Modifications Assessment | B41: =Total -> 0
A43: Go to previous sheet (Drivetrain) | B43: Go to next sheet (Brakes)

Sheet Brakes
A1: =CONCATENATE(Title, " ", Version) -> COMSCC 2024 v12.0
A3: Touring Class Summary
A5: Brakes Modifications Worksheet
A6: Click "Select" where appropriate
A8: Select or TRUE | B8: Assessment | C8: Description
B9: 1 | C9: Non‐Factory Trim brake calipers, drums, and/or rotors of a different size ‐ front, rear or both | D9: =OR(E9,A9) -> FALSE | E9: FALSE | F9: =IF(D9, B9, 0) -> 0 | I9: FALSE
B10: 2 | C10: Non-Factory Trim/modified ABS (e.g. Bosch Motorsport ABS) | D10: =OR(E10,A10) -> FALSE | E10: FALSE | F10: =IF(D10, B10, 0) -> 0 | G10: =COUNTIF(D10:D11, TRUE) -> 0 | H10: =G10>1 -> FALSE | I10: =AND(D10,H$10) -> FALSE
B11: -1 | C11: Disabling any and all factory and/or aftermarket ABS or competing in a vehicle not originally equipped with ABS | D11: =OR(E11,A11) -> FALSE | E11: FALSE | F11: =IF(D11, B11, 0) -> 0 | I11: =AND(D11,H$10) -> FALSE
B12: 0 | C12: Non-Factory Trim rotors of the same type and shape as OEM | D12: FALSE | E12: FALSE | F12: 0 | I12: FALSE
B13: 0 | C13: Non-Factory Trim rotors of the same thickness and diameter as Factory Trim, including swap from one-piece to two-piece rotors | D13: FALSE | E13: FALSE | F13: 0 | I13: FALSE
B14: 0 | C14: Non-Factory Trim brake pads or shoes | D14: FALSE | E14: FALSE | F14: 0 | I14: FALSE
B15: 0 | C15: Non-Factory Trim/modified brake lines | D15: FALSE | E15: FALSE | F15: 0 | I15: FALSE
B16: 0 | C16: Non-Factory Trim/modified brake ducting | D16: FALSE | E16: FALSE | F16: 0 | I16: FALSE
B17: 0 | C17: Enabling or use of Factory Trim ABS | D17: FALSE | E17: FALSE | F17: 0 | I17: FALSE
B18: 0 | C18: Non-Factory Trim drilled or slotted rotors of the same shape and size as OEM | D18: FALSE | E18: FALSE | F18: 0 | I18: FALSE
B19: 0 | C19: Modified, re-located, or non-Factory Trim brake brakets | D19: FALSE | E19: FALSE | F19: 0 | I19: FALSE
A20: Total | B20: =SUM(F9:F19) -> 0
A22: Total Brakes Modifications Assessment | B22: =Total -> 0
A24: Go to previous sheet (Suspension) | B24: Go to next sheet (Exterior)

Sheet Exterior
A1: =CONCATENATE(Title, " ", Version) -> COMSCC 2024 v12.0
A3: Touring Class Summary
A5: Exterior Modifications Worksheet
A6: Click "Select" where appropriate and enter information in the yellow cells…
A8: Select or TRUE | B8: Assessment | C8: Description | G8: =IF(H8>0, TRUE, FALSE) -> FALSE | H8: =COUNTIF(H9:H21, TRUE) -> 0
B9: 1 | C9: Non-Factory Trim/modified front bumper/air dam/spoiler | D9: FALSE | E9: FALSE | F9: =IF(D9, B9, 0) -> 0
B10: 1 | C10: Non-Factory Trim/modified front splitter, in addition to bumper/air dam/spoiler | D10: =OR(E10,A10) -> FALSE | E10: FALSE | F10: =IF(D10, B10, 0) -> 0 | G10: =COUNTIF(D10:D11, TRUE) -> 0 | H10: =G10>1 -> FALSE | I10: =AND(D10,H$10) -> FALSE
B11: 2 | C11: Non-Factory Trim/modified front splitter that extends more than 3.5 inches from front bumper skin leading edge, in addition to bumper/air dam/spoiler | D11: FALSE | E11: FALSE | F11: 0 | I11: =AND(D11,H$10) -> FALSE
B12: 1 | C12: Non-Factory Trim/modified canards (each set assessed points front or rear) | D12: FALSE | E12: FALSE | F12: 0
B13: 1 | C13: Non-Factory Trim Rear spoiler or wing including any airfoil that in no way protrudes more than 6” from the mounting location of the spoiler or wing, does not exceed the height of the vehicle, and does not extend beyond the width of the rear quarter panels | D13: FALSE | E13: FALSE | F13: 0 | G13: =COUNTIF(D13:D15, TRUE) -> 0 | H13: =G13>1 -> FALSE | I13: =AND(D13,H$13) -> FALSE
B14: 2 | C14: Non-Factory Trim Rear spoiler or wing including any airfoil that does not exceed the height of the vehicle, does not extend beyond the width of the rear quarter panels, and does not extend no more than 6" beyond the skin of the rear bumper | D14: FALSE | E14: FALSE | F14: 0 | G14: =COUNTIF(D14:D15, TRUE) -> 0 | I14: =AND(D14,H$13) -> FALSE
B15: 3 | C15: Non-Factory Trim Rear spoiler or wing including any air foil of any size or shape | D15: FALSE | E15: FALSE | F15: 0 | I15: =AND(D15,H$13) -> FALSE
B16: 1 | C16: Non-Factory Trim hardtop of different shape and size which alters airflow aft of the OEM rear glass (eg CWest Honda S2000 aero hardtop) | D16: FALSE | E16: FALSE | F16: 0 | G16: =COUNTIF(D16:D17, TRUE) -> 0 | H16: =G16>1 -> FALSE | I16: =AND(D16,H$16) -> FALSE
B17: 0 | C17: Factory trim hardtop or Non-Factory Trim hardtop of the same shape and size of OEM hardtop | D17: FALSE | E17: FALSE | F17: 0 | I17: =AND(D17,H$16) -> FALSE
B18: 1 | C18: Non-Factory Trim/modified vortex generator to roof, hardtop, rear glass or trunk | D18: FALSE | E18: FALSE | F18: 0
B19: 2 | C19: Non-Factory Trim/modified flat bottom | D19: FALSE | E19: FALSE | F19: 0
B20: 2 | C20: Non-Factory Trim/modified rear diffuser | D20: FALSE | E20: FALSE | F20: 0
B21: 1 | C21: Non-Factory Trim/modified side skirts | D21: FALSE | E21: FALSE | F21: 0
B22: 4 | C22: Non-factory trim Active aero, i.e. moveable aero devices; points assessed for each piece, in addition to assessment points listed above | D22: FALSE | E22: FALSE | F22: 0
B23: 0 | C23: Front Underbody Tray that does not extend in front of the front bumper skin, beyond the width of the front quarter panels, or more than 18" behind the front axle; note – points for front splitter, bumper, spoiler, air dam, and flat bottom assessed separately | D23: FALSE | E23: FALSE | F23: 0
B24: 0 | C24: Non-Factory Trim/modified fenders | D24: FALSE | E24: FALSE | F24: 0
B25: 0 | C25: Non-Factory Trim/modified doors | D25: FALSE | E25: FALSE | F25: 0
B26: 0 | C26: Non-Factory Trim/modified trunk lid | D26: FALSE | E26: FALSE | F26: 0
B27: 0 | C27: Non-Factory Trim/modified rear bumper | D27: FALSE | E27: FALSE | F27: 0
B28: 0 | C28: Non-Factory Trim/modified hood | D28: FALSE | E28: FALSE | F28: 0
B29: -1 | C29: 1 COM supplied sticker on each side of the vehicle that is easily visible from the outside (2 stickers minimum) | D29: FALSE | E29: FALSE | F29: 0
A30: Total | B30: =IF(G8, "Select Error", SUM(F9:F29)) -> 0 | F30: 0
F31: 0
A32: Number of Pieces | B32: Assessment | C32: Description | F32: 0
B33: =A33*4 -> 0 | C33: Non-factory trim Active aero, i.e. moveable aero devices; 4 points assessed for each piece, in addition to assessment points listed above
A36: Total Exterior Modifications Assessment | B36: =SUM(B33,Total) -> 0
A38: Go to previous sheet (Brakes) | B38: Go to next sheet (Weight Reduction

Sheet Weight
A1: =CONCATENATE(Title, " ", Version) -> COMSCC 2024 v12.0
A3: Touring Class Summary
D4: Full,7/8,3/4,2/3,1/2 | F4: Full | G4: 1
A5: Weight Reduction Worksheet | F5: 7/8 | G5: =7/8 -> 0.875
A6: Enter weight in the yellow cell | F6: 3/4 | G6: 0.75
F7: 2/3 | G7: =2/3 -> 0.6666666667
A8: Weight Type | B8: Amount | C8: Description | F8: 5/8 | G8: =5/8 -> 0.625
A9: Showroom Base Weight | B9: =Car_Base_Weight ->  | C9: Factory listed curb weight for a production vehicle, see Showroom Assessment Car List for amount (from Car List) | F9: 1/2 | G9: 0.5
A10: Competition Weight | C10: Total weight of vehicle plus fluids, driver, ballast and any and all safety and other equipment during competition | F10: 3/8 | G10: =3/8 -> 0.375
A11: Weight Difference | B11: =IF(B10, B10-B9, 0) -> 0 | F11: 1/3 | G11: =1/3 -> 0.3333333333
F12: 1/4 | G12: 0.25
A13: Weight Reduction Assessment | B13: =IF(ISNUMBER(Competition_Weight),INT(((Competition_Weight/(2/3*Factory_Rated_HP+1/3*Factory_Rated_Torque))*-4.25+112+INDEX(Selected_Vehicle,12)-Showroom_Assessment_Points)*100)/100, "Enter Weight") -> Enter Weight | F13: 1/8 | G13: =1/8 -> 0.125
F14: Empty | G14: 0
A16: Ballast Record
A17: Indicate the fuel level and ballast for steward inspection purposes as included in your competition weight
A18: Item | B18: Value | C18: Description | F18: Gasoline | G18: 6.2
A19: Ballast Amount (lbs) | C19: Additional ballast added to vehicle, if any (weight plates etc) | F19: Diesel | G19: 7.1
A20: Ballast Location | C20: Location of ballast (passenger, trunk, back seat etc) | D20: =ISBLANK(BallastLocation) -> TRUE
A21: Fuel Type | B21: Gasoline | C21: Select fuel type used | E21: =VLOOKUP(B21,F18:G19,2, FALSE) -> 6.2
A22: Fuel Level | B22: 1/2 | C22: Indicated Fuel Level | E22: =VLOOKUP(B22,FuelLevelTable, 2, FALSE) -> 0.5
A23: Fuel Capacity (Gal.) | C23: Fuel Tank Capacity when full
A24: Approx Fuel Weight | B24: =B23*FuelAmount*PoundsPerGallon -> 0
A26: Steward Use Only
A27: Fuel Level | B27: 1/2 | C27: Tech Fuel Level | E27: =VLOOKUP(B27,FuelLevelTable, 2, FALSE) -> 0.5
A28: Fuel Weight Difference | B28: =(B23*E27*PoundsPerGallon)-(B23*FuelAmount*PoundsPerGallon) -> 0
A30: Note – weight reduction can be achieved by removing or replacing any non-essential parts, unless otherwise mentioned
A31: Parts include: interior headliner, seats, carpets, insulation, air conditioner, radio, sunroof/moonroof, spare tire, jack, interior panels, console, etc.
A32: Ballast is allowed up to 150lbs provided it is secured – location and security of ballast must be verified by Tech Inspector or a Steward
A34: A COMSCC Steward may choose to have a competitor’s car weighed at any time during an event where scales are available. Further, the Steward may choose to weigh a single competitor, a group of competitors, an entire class or run group, or the entire Time Trial field. Scale readouts may either be used for informational purposes or in the case of a protest or tech inspection. COMSCC has it's own scales, and in case of a difference between your scales, scales at the track (NHMS), or your race shop's scales, ours win. So leave yourself a reasonable margin of error if you're at the edge of your class limit- say 10 lbs or so.
A40: Go to previous sheet (Exterior) | B40: Go to next sheet (Tires)

Sheet Tires
A1: =CONCATENATE(Title, " ", Version) -> COMSCC 2024 v12.0
A3: Touring Class Summary
A5: Tires Reduction Worksheet
A6: Select a tire and enter tire width information in the yellow cells…
A7: Note: Tire softening compounds are illegal in all Touring classes
A8: Select or TRUE | B8: Assessment | C8: Description | F8: =OFFSET(C9:C67, MATCH(TRUE, D9:D67, 0)-1, 0, 1, 1) ->  | G8: =IF(D68>1,TRUE,FALSE) -> FALSE
B9: 15 | C9: Non-DOT Slicks (except where noted) | D9: FALSE | E9: FALSE | F9: =IF(D9, B9, 0) -> 0 | G9: O | I9: =AND(D9,$G$8) -> FALSE
B10: 10 | C10: BFGoodrich R1-S, g-force slick | D10: FALSE | E10: FALSE | F10: =IF(D10, B10, 0) -> 0 | G10: O | I10: =AND(D10,$G$8) -> FALSE
B11: 10 | C11: Continental Challenge Wets | D11: FALSE | E11: FALSE | F11: 0 | G11: O | I11: FALSE
B12: 10 | C12: Goodyear RS AC - "dot radial" | D12: FALSE | E12: FALSE | F12: 0 | G12: O | I12: FALSE
B13: 10 | C13: Hankook c90, c91,C9, Wets | D13: FALSE | E13: FALSE | F13: 0 | G13: O | I13: FALSE
B14: 10 | C14: Hoosier Radial Wets, H2O,SMW | D14: FALSE | E14: FALSE | F14: 0 | G14: O | I14: FALSE
B15: 10 | C15: Hoosier A Compound (All) | D15: FALSE | E15: FALSE | F15: 0 | G15: O | I15: FALSE
B16: 10 | C16: Pirelli P-Zero Slick ( DH Compound ONLY) | D16: FALSE | E16: FALSE | F16: 0 | G16: O | I16: FALSE
B17: 6 | C17: Hankook c70, c71, C7 | D17: FALSE | E17: FALSE | F17: =IF(D17, B17, 0) -> 0 | G17: O | I17: =AND(D17,$G$8) -> FALSE
B18: 6 | C18: Yoko A055 | D18: FALSE | E18: FALSE | F18: =IF(D18, B18, 0) -> 0 | G18: O | I18: =AND(D18,$G$8) -> FALSE
B19: 6 | C19: Goodyear eagle RS | D19: FALSE | E19: FALSE | F19: =IF(D19, B19, 0) -> 0 | G19: O | I19: =AND(D19,$G$8) -> FALSE
B20: 6 | C20: Hoosier R7, SM7, SM7.5 compound (All) | D20: FALSE | E20: FALSE | F20: =IF(D20, B20, 0) -> 0 | G20: O | I20: =AND(D20,$G$8) -> FALSE
B21: 6 | C21: Kumho Ecsta V700 | D21: FALSE | E21: FALSE | F21: 0 | G21: O | I21: FALSE
B22: 6 | C22: BFGoodrich R1 | D22: FALSE | E22: FALSE | F22: 0 | G22: O | I22: FALSE
B23: 6 | C23: Hankook Z214 c50, c51, C5 | D23: FALSE | E23: FALSE | F23: 0 | G23: O | I23: FALSE
B24: 2.5 | C24: Continental Challenge Dry Tires | D24: FALSE | E24: FALSE | F24: 0 | G24: O | I24: FALSE
B25: 2.5 | C25: Hankook Z221 TD Soft | D25: FALSE | E25: FALSE | F25: 0 | G25: O | I25: FALSE
B26: 1.5 | C26: VITOUR Tempesta P1 | D26: FALSE | E26: FALSE | F26: 0 | G26: O | I26: FALSE
B27: 1.5 | C27: Goodyear Supercar 3R | D27: FALSE | E27: FALSE | F27: 0 | G27: O | I27: FALSE
B28: 0 | C28: DOT UTQG rating 41-120 (unclassified) | D28: FALSE | E28: FALSE | F28: 0 | G28: O | I28: FALSE
B29: 0 | C29: Federal FZ-201 Soft | D29: FALSE | E29: FALSE | F29: =IF(D29, B29, 0) -> 0 | G29: O | I29: =AND(D29,$G$8) -> FALSE
B30: 0 | C30: Hankook z221 TD Hard/ C3 | D30: FALSE | E30: FALSE | F30: 0 | G30: O | I30: FALSE
B31: 0 | C31: Maxxis Victra RC-1 (R2) | D31: FALSE | E31: FALSE | F31: 0 | G31: O | I31: FALSE
B32: 0 | C32: Pirelli Tropheo R | D32: FALSE | E32: FALSE | F32: =IF(D32, B32, 0) -> 0 | G32: O | I32: =AND(D32,$G$8) -> FALSE
B33: -1 | C33: Toyo Proxes RR | D33: FALSE | E33: FALSE | F33: =IF(D33, B33, 0) -> 0 | G33: O | I33: =AND(D33,$G$8) -> FALSE
B34: -1.5 | C34: Bridgestone RE71RS | D34: FALSE | E34: FALSE | F34: 0 | G34: O | I34: FALSE
B35: -1.5 | C35: Yokahama A052 | D35: FALSE | E35: FALSE | F35: 0 | G35: O | I35: FALSE
B36: -1.5 | C36: DOT UTQG rating 121-200 (unclassified) | D36: FALSE | E36: FALSE | F36: 0 | G36: O | I36: FALSE
B37: -2.5 | C37: BFGoodrich Rival S 1.5 | D37: FALSE | E37: FALSE | F37: 0 | G37: O | I37: FALSE
B38: -2.5 | C38: Bridgestone RE71R | D38: FALSE | E38: FALSE | F38: 0 | G38: O | I38: FALSE
B39: -2.5 | C39: Falken Azenis RT660 | D39: FALSE | E39: FALSE | F39: =IF(D39, B39, 0) -> 0 | G39: O | I39: =AND(D39,$G$8) -> FALSE
B40: -2.5 | C40: Federal FZ-201 Medium | D40: FALSE | E40: FALSE | F40: =IF(D40, B40, 0) -> 0 | G40: O | I40: =AND(D40,$G$8) -> FALSE
B41: -2.5 | C41: Yoko ADVAN Apex | D41: FALSE | E41: FALSE | F41: =IF(D41, B41, 0) -> 0 | G41: O | I41: =AND(D41,$G$8) -> FALSE
B42: -2.5 | C42: Kumho Ecsta V720, V730 | D42: FALSE | E42: FALSE | F42: =IF(D42, B42, 0) -> 0 | G42: O | I42: =AND(D42,$G$8) -> FALSE
B43: -2.5 | C43: Michelin Pilot Sport Cup 2 | D43: FALSE | E43: FALSE | F43: =IF(D43, B43, 0) -> 0 | G43: O | I43: =AND(D43,$G$8) -> FALSE
B44: -2.5 | C44: Michelin Sport Cup 2R | D44: FALSE | E44: FALSE | F44: 0 | G44: O | I44: FALSE
B45: -2.5 | C45: Nankang AR-1 | D45: FALSE | E45: FALSE | F45: =IF(D45, B45, 0) -> 0 | G45: O | I45: =AND(D45,$G$8) -> FALSE
B46: -2.5 | C46: Nankang CR-1 | D46: FALSE | E46: FALSE | F46: =IF(D46, B46, 0) -> 0 | G46: O | I46: =AND(D46,$G$8) -> FALSE
B47: -2.5 | C47: Toyo R888 | D47: FALSE | E47: FALSE | F47: =IF(D47, B47, 0) -> 0 | G47: O | I47: =AND(D47,$G$8) -> FALSE
B48: -2.5 | C48: Toyo RA1 | D48: FALSE | E48: FALSE | F48: =IF(D48, B48, 0) -> 0 | G48: O | I48: =AND(D48,$G$8) -> FALSE
B49: -2.5 | C49: Yokahama A048 | D49: FALSE | E49: FALSE | F49: =IF(D49, B49, 0) -> 0 | G49: O | I49: =AND(D49,$G$8) -> FALSE
B50: -3.5 | C50: R888R | D50: FALSE | E50: FALSE | F50: 0 | G50: O | I50: FALSE
B51: -3.5 | C51: Dunlop Direzza ZIII | D51: FALSE | E51: FALSE | F51: =IF(D51, B51, 0) -> 0 | G51: O | I51: =AND(D51,$G$8) -> FALSE
B52: -3.5 | C52: Nitto NT01 | D52: FALSE | E52: FALSE | F52: =IF(D52, B52, 0) -> 0 | G52: O | I52: =AND(D52,$G$8) -> FALSE
B53: -3.5 | C53: Federal 595RS-RR, PRO | D53: FALSE | E53: FALSE | F53: 0 | G53: O | I53: FALSE
B54: -3.5 | C54: Goodyear Supercar 3 | D54: FALSE | E54: FALSE | F54: 0 | G54: O | I54: FALSE
B55: -3.5 | C55: Goodyear Supercar G:2 | D55: FALSE | E55: FALSE | F55: 0 | G55: O | I55: FALSE | M55: Class | N55: Spec size
B56: -3.5 | C56: Toyo R1R | D56: FALSE | E56: FALSE | F56: =IF(D56, B56, 0) -> 0 | G56: O | I56: =AND(D56,$G$8) -> FALSE | M56: T30 | N56: 185
B57: -5 | C57: BF Goodrich g-Force Rival | D57: FALSE | E57: FALSE | F57: =IF(D57, B57, 0) -> 0 | G57: O | I57: =AND(D57,$G$8) -> FALSE | M57: T40 | N57: 205
B58: -5 | C58: Continental ExtremeContact Force | D58: FALSE | E58: FALSE | F58: 0 | G58: O | I58: FALSE | M58: T50 | N58: 225
B59: -5 | C59: Falken Azenis RT615K+ | D59: FALSE | E59: FALSE | F59: =IF(D59, B59, 0) -> 0 | G59: O | I59: =AND(D59,$G$8) -> FALSE | M59: T60 | N59: 245
B60: -5 | C60: Hankook Ventus RS-4 | D60: FALSE | E60: FALSE | F60: 0 | G60: O | I60: FALSE | M60: T70 | N60: 265
B61: -5 | C61: Maxxis Victra VR-1 | D61: FALSE | E61: FALSE | F61: =IF(D61, B61, 0) -> 0 | G61: O | I61: =AND(D61,$G$8) -> FALSE | M61: T80 | N61: 285
B62: -7 | C62: DOT UTQG rating 201-280 | D62: FALSE | E62: FALSE | F62: 0 | G62: O | I62: FALSE | M62: T90 | N62: 305
B63: -7 | C63: Cooper RS3-R | D63: FALSE | E63: FALSE | F63: 0 | G63: O | I63: FALSE | M63: T100 | N63: 315
B64: -7 | C64: Cooper RS3-RS | D64: FALSE | E64: FALSE | F64: 0 | G64: O | I64: FALSE
B65: -7 | C65: Federal 595RS-R | D65: FALSE | E65: FALSE | F65: =IF(D65, B65, 0) -> 0 | G65: O | I65: =AND(D65,$G$8) -> FALSE
B66: -7 | C66: Michelin Pilot Super Sport, Pilot Spt 4S | D66: FALSE | E66: FALSE | F66: =IF(D66, B66, 0) -> 0 | G66: O | I66: =AND(D66,$G$8) -> FALSE
B67: -10 | C67: DOT UTQG rating > 281 | D67: FALSE | E67: FALSE | F67: 0 | G67: O | I67: FALSE
B68: =IF(D68=0, "Pick one above", IF(G8, "Error multi-select",SUM(F9:F67))) -> Pick one above | D68: =COUNTIF(D9:D67, TRUE) -> 0 | G68: =IF(D68>0, OFFSET(G9:G67, MATCH(TRUE, E9:E67, 0)-1, 0, 1, 1), "Z") -> Z
A70: =IF(Competition_class="T110","Note: The sheet says T110 here to make it work, your proposed class is actually TU","") -> 
A71: Proposed Class | B71: =Classification ->  | C71: =Total_Assessment -> No Vehicle | D71: =HLOOKUP(Tire_Competition_Class, Tire_Class_Width, 2, FALSE) ->  | G71: 10
A72: Intended Competition Class | C72: =IF(ISNUMBER(Tire_spec_width), CONCATENATE("Class spec width ", Tire_spec_width, " mm"),"Select intended competition class") -> Select intended competition class | G72: 10
A73: Tire Width Front | C73: Tire width in mm | F73: 235 | G73: 15
A74: Brand | C74: Note - some tires are assessed 1 point for excess tire-width relative to listed tire size
A75: Difference
A76: Tire Width Rear | C76: Tire width in mm | F76: 275 | G76: 20
A77: Average Width | B77: =IF(ISNUMBER(AVERAGE(B73,B76)),AVERAGE(B73,B76),"Enter Width") -> Enter Width | C77: =IF(G77, "Warning: Selected tire class higher than current assessment", "") ->  | D77: =Tire_Width-D71 ->  | E77: =D77*0.05 ->  | G77: =IF(ISBLANK(Tire_Competition_Class),FALSE,IF(HLOOKUP(Tire_Competition_Class, Tire_Class_Width, 2, FALSE)>HLOOKUP(Competition_class, Tire_Class_Width, 2, FALSE),TRUE,FALSE)) -> FALSE
A78: Assessment | B78: =IF(ISBLANK(Tire_Competition_Class),"No Tire",IF(ISNUMBER(E77),E77,"No Width")) -> No Tire
A80: Total Tire Assessment | B80: =IF(AND(ISNUMBER(Tire_Type_Assessment),ISNUMBER(Tire_Width_Assessment)),Tire_Type_Assessment+Tire_Width_Assessment,"No Tire") -> No Tire
I81: =SUM(I88:I93) -> 
A82: Go to previous sheet (Weight Reduction) | B82: See Results (Touring Summary)
C85: T110 | D85: T100 | E85: T90 | F85: T80 | G85: T70 | H85: T60 | I85: T50 | J85: T40 | K85: T30
C86: 335 | D86: 315 | E86: 305 | F86: 285 | G86: 265 | H86: 245 | I86: 225 | J86: 205 | K86: 185
G88: =IF(Tire_Width<Tire_spec_width, MIN(0, Tire_Width - MIN(Size_235, Tire_spec_width)), 0) ->  | H88: =per_10 -> 10 | I88: =IF(G88<0, G88/H88, 0) -> 
G89: =IF(Tire_Width<Tire_spec_width, MIN(0, MAX(Tire_Width,Size_235)-MIN(Tire_spec_width,Size_275)), 0) ->  | H89: =per_15 -> 15 | I89: =IF(G89<0, G89/H89, 0) -> 
G90: =IF(Tire_Width<Tire_spec_width, MIN(0, MAX(Tire_Width,Size_275)-Tire_spec_width), 0) ->  | H90: =per_20 -> 20 | I90: =IF(G90<0, G90/H90, 0) -> 
G91: =IF(Tire_Width>Tire_spec_width, MIN(Tire_Width,Size_235)-Tire_spec_width, 0) ->  | H91: =per_10 -> 10 | I91: =IF(G91>0, G91/H91, 0) -> 
G92: =IF(Tire_Width>Tire_spec_width, MIN(Tire_Width,Size_275)-MAX(Tire_spec_width,Size_235), 0) ->  | H92: =per_15 -> 15 | I92: =IF(G92>0, G92/H92, 0) -> 
G93: =IF(AND(Tire_Width>Tire_spec_width,Tire_Width>Size_275), Tire_Width-MAX(Tire_spec_width,Size_275), 0) ->  | H93: =per_20 -> 20 | I93: =IF(G93>0, G93/H93, 0) -> 

Sheet not used (hidden)
A1: Home | B1: COMSCC 2019 Touring Class Classification Sheet
A3: Make | G3: Model
A4: =Car_Make ->  | G4: =Car_Model -> 
A5: Year | G5: Showroom Assessment | J5: Class
A6: =INDEX(Selected_Vehicle,3) &" - " & INDEX(Selected_Vehicle,4) -> - | G6: =TEXT(Car_Base_Points,"0.0") ->  | J6: =Car_Base_Class -> 
A8: =IF(Safety_mods,"Safety Upgrades Required for vehicles with 31+ modification points",IF(Safety_Engine,"Safety Upgrades Required for vehicles with 16+ engine modification points","")) ->  | G8: Factory Rated Crank HP | J8: =Factory_Rated_HP -> 
G9: Factory Rated Torque | J9: =Factory_Rated_Torque -> 
G10: Showroom Base Weight | J10: =Showroom_Base_Weight -> 
G11: Competition Weight | J11: =Competition_Weight -> 0
A12: Modification Assessment Points
A13: Engine total | E13: =Total_Engine -> 0 | G13: =IF(ISNUMBER(Scrutineer_Engine_Points), "Scrutineer Engine Points", "") ->  | J13: =IF(ISNUMBER(Scrutineer_Engine_Points), Scrutineer_Engine_Points, "") -> 
G14: =IF(ISNUMBER(Scrutineer_Engine_Points), "Scrutineer HP/Torque", "") ->  | J14: =IF(ISNUMBER(Scrutineer_Engine_Points), Scrutineer_HP & "/" & Scrutineer_Torque & " " & Engine_power_type, "") -> 
A15: Drivetrain | E15: =Total_Drivetrain -> 0 | G15: =IF(ISNUMBER(Scrutineer_Engine_Points), "Dyno Type", "") ->  | J15: =IF(ISNUMBER(Scrutineer_Engine_Points), Drivetrain_type, "") -> 
A17: Suspension | E17: =Total_Suspension -> 0 | G17: Current Weight | J17: =TEXT(Weight_Difference,"0") & IF(Weight_Difference > 0, " over", " under") -> 0 under
G18: =Weight!A19 -> Ballast Amount (lbs) | J18: =BallastAmount -> 0
A19: Brakes | E19: =Total_Brakes -> 0 | G19: =Weight!A20 -> Ballast Location | J19: =BallastLocation -> 0
G20: Fuel Level | J20: =BallastFuelLevel -> 1/2
A21: Exterior | E21: =Total_Exterior -> 0
A23: Weight Reduction | E23: =Total_Weight -> Enter Weight
A25: Tire total | E25: =Total_Tire -> No Tire | G25: Tire Compound | J25: =Tire_Compound -> 
H26: Avg Tire Width | J26: =Tire_Width -> Enter Width
A27: All mods total | E27: =Points_Assessment -> 0 | H27: Spec Width | J27: =Tire_spec_width -> 
A30: Total Assessment Points | G30: Touring Car Class
D31: =TEXT(Total_Assessment,"0.0") -> No Vehicle | G31: =TEXT(Touring_Class,"0.0") -> Tire Class Not Set
A33: Note: All convertibles and open cockpit cars must have a suitable roll bar and arm-restraints (see rules for info)
A36: Driver Information
A39: First Name | E39: Last Name | I39: Car Number
A43: Competitor Signature
A44: By signing this form I attest to the accuracy and completeness of the information provided on this sheet
B46: Engine | H46: Drivetrain | M46: Engine | O46: Drivetrain
A47: =INDEX(Public_Engine_Mods, 1, 2) -> 1 | B47: =INDEX(Public_Engine_Mods, 1, 3) -> Reprogrammed Factory Trim (includes ROM chips) ECU, naturally aspirated engine | G47: =INDEX(Public_Drivetrain_Mods, 1, 2) -> 6 | H47: =INDEX(Public_Drivetrain_Mods, 1, 3) -> Non-Factory Trim sequential gearbox | M47: =INDEX(Public_Engine_Mods, 1, 4) -> FALSE | O47: =INDEX(Public_Drivetrain_Mods, 1, 4) -> FALSE
G48: =INDEX(Public_Drivetrain_Mods, 2, 2) -> 4 | H48: =INDEX(Public_Drivetrain_Mods, 2, 3) -> Non-Factory Trim non-sequential (H pattern) Dogbox gearbox | O48: =INDEX(Public_Drivetrain_Mods, 2, 4) -> FALSE
A49: =INDEX(Public_Engine_Mods, 2, 2) -> 2 | B49: =INDEX(Public_Engine_Mods, 2, 3) -> Non-Factory Trim ECU, naturally aspirated engine | G49: =INDEX(Public_Drivetrain_Mods, 3, 2) -> 3 | H49: =INDEX(Public_Drivetrain_Mods, 3, 3) -> Dual clutch transmission - DSG, DCT, PDK, etc | M49: =INDEX(Public_Engine_Mods, 2, 4) -> FALSE | O49: =INDEX(Public_Drivetrain_Mods, 3, 4) -> FALSE
A50: =INDEX(Public_Engine_Mods, 3, 2) -> 3 | B50: =INDEX(Public_Engine_Mods, 3, 3) -> Reprogrammed Factory Trim (includes ROM chips) ECU, forced induction engine air/fuel change only. If applicable, additional points must be added for an increase in boost. | G50: =INDEX(Public_Drivetrain_Mods, 5, 2) -> 1 | H50: =INDEX(Public_Drivetrain_Mods, 5, 3) -> Automated single clutch manual transmission - SMG, Ferrari F1, Lambo E-Gear etc | M50: =INDEX(Public_Engine_Mods, 3, 4) -> FALSE | O50: =INDEX(Public_Drivetrain_Mods, 5, 4) -> FALSE
A52: =INDEX(Public_Engine_Mods, 4, 2) -> 4 | B52: =INDEX(Public_Engine_Mods, 4, 3) -> Non-Factory Trim ECU, forced induction engine engine air/fuel change only. If applicable, additional points must be added for an increase in boost. | G52: =INDEX(Public_Drivetrain_Mods, 6, 2) -> 1 | H52: =INDEX(Public_Drivetrain_Mods, 6, 3) -> Manual tranmission with factory autoblip (Nissan 370Z, BMW M2, C7 Corvette, Porsche) or aftermarket add-on | M52: =INDEX(Public_Engine_Mods, 4, 4) -> FALSE | O52: =INDEX(Public_Drivetrain_Mods, 6, 4) -> FALSE
A53: =INDEX(Public_Engine_Mods, 5, 2) -> 2 | B53: =INDEX(Public_Engine_Mods, 5, 3) -> Turbo Boost increase <50% | G53: =INDEX(Public_Drivetrain_Mods, 7, 2) -> 0 | H53: =INDEX(Public_Drivetrain_Mods, 7, 3) -> 5 or 6 speed manual transmission | M53: =INDEX(Public_Engine_Mods, 5, 4) -> FALSE | O53: =INDEX(Public_Drivetrain_Mods, 7, 4) -> FALSE
A54: =INDEX(Public_Engine_Mods, 6, 2) -> 4 | B54: =INDEX(Public_Engine_Mods, 6, 3) -> Turbo Boost increase >50% | M54: =INDEX(Public_Engine_Mods, 6, 4) -> FALSE
A55: =INDEX(Public_Engine_Mods, 7, 2) -> 1 | B55: =INDEX(Public_Engine_Mods, 7, 3) -> Non-Factory Trim/modified air intake before the throttle body | G55: =INDEX(Public_Drivetrain_Mods, 8, 2) -> -1 | H55: =INDEX(Public_Drivetrain_Mods, 8, 3) -> 3 or 4 speed manual transmission | M55: =INDEX(Public_Engine_Mods, 7, 4) -> FALSE | O55: =INDEX(Public_Drivetrain_Mods, 8, 4) -> FALSE
A56: =INDEX(Public_Engine_Mods, 8, 2) -> 1 | B56: =INDEX(Public_Engine_Mods, 8, 3) -> Non-factory trim/modified headlight to allow increased or cooler air flow to engine air intake, unless already taking one point for cold air intake. | G56: =INDEX(Public_Drivetrain_Mods, 9, 2) -> -2 | H56: =INDEX(Public_Drivetrain_Mods, 9, 3) -> Automatic transmission with 6 speeds or less | M56: =INDEX(Public_Engine_Mods, 8, 4) -> FALSE | O56: =INDEX(Public_Drivetrain_Mods, 9, 4) -> FALSE
A57: =INDEX(Public_Engine_Mods, 9, 2) -> 1 | B57: =INDEX(Public_Engine_Mods, 9, 3) -> Non-Factory Trim/modified throttle body | G57: =INDEX(Public_Drivetrain_Mods, 10, 2) -> -2 | H57: =INDEX(Public_Drivetrain_Mods, 10, 3) -> CVT Transmission | M57: =INDEX(Public_Engine_Mods, 9, 4) -> FALSE | O57: =INDEX(Public_Drivetrain_Mods, 10, 4) -> FALSE
A58: =INDEX(Public_Engine_Mods, 10, 2) -> 1 | B58: =INDEX(Public_Engine_Mods, 10, 3) -> Non-Factory Trim/modified fuel delivery system, except fuel pump(s) (i.e. fuel injectors, fuel rails, fuel regulators) | H58: Suspension | M58: =INDEX(Public_Engine_Mods, 10, 4) -> FALSE | O58: Suspension
A59: =INDEX(Public_Engine_Mods, 11, 2) -> 1 | B59: =INDEX(Public_Engine_Mods, 11, 3) -> Non-Factory Trim/modified intake manifold 1-6 cylinder engines, including manifold porting | G59: =INDEX(Public_Suspension_Mods, 1, 2) -> 1 | H59: =INDEX(Public_Suspension_Mods, 1, 3) -> Non-Factory Trim non-adjustable shocks, struts, dampers | M59: =INDEX(Public_Engine_Mods, 11, 4) -> FALSE | O59: =INDEX(Public_Suspension_Mods, 1, 4) -> FALSE
G60: =INDEX(Public_Suspension_Mods, 2, 2) -> 1 | H60: =INDEX(Public_Suspension_Mods, 2, 3) -> Non-Factory Trim 1-way adjustable shocks, struts, dampers | O60: =INDEX(Public_Suspension_Mods, 2, 4) -> FALSE
A61: =INDEX(Public_Engine_Mods, 12, 2) -> 2 | B61: =INDEX(Public_Engine_Mods, 12, 3) -> Non-Factory Trim/modified intake manifold 7-12 cylinder engines, including manifold porting | G61: =INDEX(Public_Suspension_Mods, 3, 2) -> 2 | H61: =INDEX(Public_Suspension_Mods, 3, 3) -> Non-Factory Trim 2-way adjustable shocks, struts, dampers | M61: =INDEX(Public_Engine_Mods, 12, 4) -> FALSE | O61: =INDEX(Public_Suspension_Mods, 3, 4) -> FALSE
G62: =INDEX(Public_Suspension_Mods, 4, 2) -> 3 | H62: =INDEX(Public_Suspension_Mods, 4, 3) -> Non-Factory Trim 3-way (or more) adjustable shocks, struts, dampers | O62: =INDEX(Public_Suspension_Mods, 4, 4) -> FALSE
A63: =INDEX(Public_Engine_Mods, 13, 2) -> 3 | B63: =INDEX(Public_Engine_Mods, 13, 3) -> Water-alcohol injection System | M63: =INDEX(Public_Engine_Mods, 13, 4) -> FALSE
A64: =INDEX(Public_Engine_Mods, 14, 2) -> Dyno | B64: =INDEX(Public_Engine_Mods, 14, 3) -> Non-Factory Trim/modified supercharger or turbocharger, any location | G64: =INDEX(Public_Suspension_Mods, 5, 2) -> 1 | H64: =INDEX(Public_Suspension_Mods, 5, 3) -> Non-Factory Trim shocks, struts, dampers with piggyback canister or external remote canister – note: must also take points for shocks/struts/dampers as listed above | M64: =INDEX(Public_Engine_Mods, 14, 4) -> FALSE | O64: =INDEX(Public_Suspension_Mods, 5, 4) -> FALSE
A65: =INDEX(Public_Engine_Mods, 15, 2) -> 3 | B65: =INDEX(Public_Engine_Mods, 15, 3) -> Non-Factory Trim/modified supercharger pulley | G65: =INDEX(Public_Suspension_Mods, 6, 2) -> 2 | H65: =INDEX(Public_Suspension_Mods, 6, 3) -> Non-adjustable non-Factory Trim coil springs, leaf springs, or torsion bars (or non-modified factory height adjustment) | M65: =INDEX(Public_Engine_Mods, 15, 4) -> FALSE | O65: =INDEX(Public_Suspension_Mods, 6, 4) -> FALSE
A66: =INDEX(Public_Engine_Mods, 16, 2) -> 3 | B66: =INDEX(Public_Engine_Mods, 16, 3) -> Non-Factory Trim/modified boost controller or vacuum lines that control boost | G66: =INDEX(Public_Suspension_Mods, 7, 2) -> 3 | H66: =INDEX(Public_Suspension_Mods, 7, 3) -> Height adjustable non-Factory Trim coil springs, leaf springs, or torsion bars (or springs with modified factory height adjustment) | M66: =INDEX(Public_Engine_Mods, 16, 4) -> FALSE | O66: =INDEX(Public_Suspension_Mods, 7, 4) -> FALSE
A67: =INDEX(Public_Engine_Mods, 17, 2) -> 1 | B67: =INDEX(Public_Engine_Mods, 17, 3) -> Non-Factory Trim/modified wastegate, wastegate actuator | G67: =INDEX(Public_Suspension_Mods, 8, 2) -> 1 | H67: =INDEX(Public_Suspension_Mods, 8, 3) -> Torsion bar to coil spring conversion | M67: =INDEX(Public_Engine_Mods, 17, 4) -> FALSE | O67: =INDEX(Public_Suspension_Mods, 8, 4) -> FALSE
A68: =INDEX(Public_Engine_Mods, 18, 2) -> 2 | B68: =INDEX(Public_Engine_Mods, 18, 3) -> Non-Factory Trim/modified intercooler | G68: =INDEX(Public_Suspension_Mods, 9, 2) -> 1 | H68: =INDEX(Public_Suspension_Mods, 9, 3) -> Non-Factory Trim sway bars | M68: =INDEX(Public_Engine_Mods, 18, 4) -> FALSE | O68: =INDEX(Public_Suspension_Mods, 9, 4) -> FALSE
A69: =INDEX(Public_Engine_Mods, 19, 2) -> 1 | B69: =INDEX(Public_Engine_Mods, 19, 3) -> Non-Factory Trim/modified intercooler pipes only | M69: =INDEX(Public_Engine_Mods, 19, 4) -> FALSE
A70: =INDEX(Public_Engine_Mods, 20, 2) -> Dyno | B70: =INDEX(Public_Engine_Mods, 20, 3) -> Non-Factory Trim/modified camshafts, rocker arms, pushrods, or cam gears that adjust cam timing or lift | G70: =INDEX(Public_Suspension_Mods, 10, 2) -> 1 | H70: =INDEX(Public_Suspension_Mods, 10, 3) -> Non-Factory Trim engine bracing (not including motor and other drivetrain mounts) | M70: =INDEX(Public_Engine_Mods, 20, 4) -> FALSE | O70: =INDEX(Public_Suspension_Mods, 10, 4) -> FALSE
A72: =INDEX(Public_Engine_Mods, 21, 2) -> Dyno | B72: =INDEX(Public_Engine_Mods, 21, 3) -> Ported/polished Factory Trim cylinder heads | G72: =INDEX(Public_Suspension_Mods, 11, 2) -> 1 | H72: =INDEX(Public_Suspension_Mods, 11, 3) -> Non-Factory Trim/Modified Control Arms or Non-Factory Trim/Modified Trailing or Camber Arms of different dimensions than Factory Trim | M72: =INDEX(Public_Engine_Mods, 21, 4) -> FALSE | O72: =INDEX(Public_Suspension_Mods, 11, 4) -> FALSE
A73: =INDEX(Public_Engine_Mods, 22, 2) -> Dyno | B73: =INDEX(Public_Engine_Mods, 22, 3) -> Non-Factory Trim cylinder heads | G73: =INDEX(Public_Suspension_Mods, 12, 2) -> 2 | H73: =INDEX(Public_Suspension_Mods, 12, 3) -> Modification of wishbone suspension upright | M73: =INDEX(Public_Engine_Mods, 22, 4) -> FALSE | O73: =INDEX(Public_Suspension_Mods, 12, 4) -> FALSE
A74: =INDEX(Public_Engine_Mods, 23, 2) -> Dyno | B74: =INDEX(Public_Engine_Mods, 23, 3) -> Non-Factory Trim/modified engine intake/exhaust valves | M74: =INDEX(Public_Engine_Mods, 23, 4) -> FALSE
A75: =INDEX(Public_Engine_Mods, 24, 2) -> Dyno | B75: =INDEX(Public_Engine_Mods, 24, 3) -> Increased displacement by more than 1% | G75: =INDEX(Public_Suspension_Mods, 13, 2) -> 1 | H75: =INDEX(Public_Suspension_Mods, 13, 3) -> Non-Factory Trim subframe that does not alter suspension geometry | M75: =INDEX(Public_Engine_Mods, 24, 4) -> FALSE | O75: =INDEX(Public_Suspension_Mods, 13, 4) -> FALSE
A76: =INDEX(Public_Engine_Mods, 25, 2) -> 0 | B76: =INDEX(Public_Engine_Mods, 25, 3) -> Increase compression ratio by .50 or less | G76: =INDEX(Public_Suspension_Mods, 14, 2) -> 1 | H76: =INDEX(Public_Suspension_Mods, 14, 3) -> Non-Factory Trim/modified Watts Link | M76: =INDEX(Public_Engine_Mods, 25, 4) -> FALSE | O76: =INDEX(Public_Suspension_Mods, 14, 4) -> FALSE
A77: =INDEX(Public_Engine_Mods, 26, 2) -> Dyno | B77: =INDEX(Public_Engine_Mods, 26, 3) -> Increase compression ratio greater than .50 | G77: =INDEX(Public_Suspension_Mods, 15, 2) -> 1 | H77: =INDEX(Public_Suspension_Mods, 15, 3) -> Non-Factory Trim/modified panhard bar | M77: =INDEX(Public_Engine_Mods, 26, 4) -> FALSE | O77: =INDEX(Public_Suspension_Mods, 15, 4) -> FALSE
A78: =INDEX(Public_Engine_Mods, 27, 2) -> 1 | B78: =INDEX(Public_Engine_Mods, 27, 3) -> Dry sump engine oil system | G78: =INDEX(Public_Suspension_Mods, 16, 2) -> 2 | H78: =INDEX(Public_Suspension_Mods, 16, 3) -> Non-Factory Trim torque bar | M78: =INDEX(Public_Engine_Mods, 27, 4) -> FALSE | O78: =INDEX(Public_Suspension_Mods, 16, 4) -> FALSE
A79: =INDEX(Public_Engine_Mods, 28, 2) -> 1 | B79: =INDEX(Public_Engine_Mods, 28, 3) -> Non-Factory Trim/modified header 1-6 cyl (pre-cat exhaust change) | G79: =INDEX(Public_Suspension_Mods, 17, 2) -> 1 | H79: =INDEX(Public_Suspension_Mods, 17, 3) -> Modify OEM torque bar | M79: =INDEX(Public_Engine_Mods, 28, 4) -> FALSE | O79: =INDEX(Public_Suspension_Mods, 17, 4) -> FALSE
A80: =INDEX(Public_Engine_Mods, 29, 2) -> 2 | B80: =INDEX(Public_Engine_Mods, 29, 3) -> Non-Factory Trim/modified header 7-12 cyl (pre-cat exhaust change) | G80: =INDEX(Public_Suspension_Mods, 18, 2) -> 1 | H80: =INDEX(Public_Suspension_Mods, 18, 3) -> Non-Factory Trim suspension bushings or spherical bearings, except rubber or polyurethane | M80: =INDEX(Public_Engine_Mods, 29, 4) -> FALSE | O80: =INDEX(Public_Suspension_Mods, 18, 4) -> FALSE
A81: =INDEX(Public_Engine_Mods, 30, 2) -> 1 | B81: =INDEX(Public_Engine_Mods, 30, 3) -> Non-Factory Trim/modified exhaust beyond the catalytic converter (e.g. cat back exhaust) | M81: =INDEX(Public_Engine_Mods, 30, 4) -> FALSE
A82: =INDEX(Public_Engine_Mods, 31, 2) -> 1 | B82: =INDEX(Public_Engine_Mods, 31, 3) -> Non-Factory Trim/modified catalytic converter(s) | G82: =INDEX(Public_Suspension_Mods, 19, 2) -> 1 | H82: =INDEX(Public_Suspension_Mods, 19, 3) -> Non-Factory Trim/modified suspension components which enable alignment settings beyond Factory Trim capability (does not apply to coil springs, leaf springs, or torsion bars); note - additional points may need to be taken for specific non-Factory Trim suspension components if listed elsewhere in this section | M82: =INDEX(Public_Engine_Mods, 31, 4) -> FALSE | O82: =INDEX(Public_Suspension_Mods, 19, 4) -> FALSE
A83: =INDEX(Public_Engine_Mods, 32, 2) -> 1 | B83: =INDEX(Public_Engine_Mods, 32, 3) -> Complete removal or “gutting” of OEM catalytic converter(s) (i.e. “test pipe” in place of catalytic converter) | M83: =INDEX(Public_Engine_Mods, 32, 4) -> FALSE
A84: =INDEX(Public_Engine_Mods, 33, 2) -> 1 | B84: =INDEX(Public_Engine_Mods, 33, 3) -> Non-Factory Trim/modified power steering, crank pulley | H84: External | M84: =INDEX(Public_Engine_Mods, 33, 4) -> FALSE | O84: External
A85: =INDEX(Public_Engine_Mods, 34, 2) -> 1 | B85: =INDEX(Public_Engine_Mods, 34, 3) -> Non-Factory Trim/modified/deleted engine or accessory fan and/or other engine accessories not otherwise listed | G85: =INDEX(Public_Exterior_Mods, 1, 2) -> 1 | H85: =INDEX(Public_Exterior_Mods, 1, 3) -> Non-Factory Trim/modified front bumper/air dam/spoiler | M85: =INDEX(Public_Engine_Mods, 34, 4) -> FALSE | O85: =INDEX(Public_Exterior_Mods, 1, 4) -> FALSE
A86: =INDEX(Public_Engine_Mods, 35, 2) -> Dyno | B86: =INDEX(Public_Engine_Mods, 35, 3) -> Street Port, rotary engines | G86: =INDEX(Public_Exterior_Mods, 2, 2) -> 1 | H86: =INDEX(Public_Exterior_Mods, 2, 3) -> Non-Factory Trim/modified front splitter, in addition to bumper/air dam/spoiler | M86: =INDEX(Public_Engine_Mods, 35, 4) -> FALSE | O86: =INDEX(Public_Exterior_Mods, 2, 4) -> FALSE
A87: =INDEX(Public_Engine_Mods, 36, 2) -> Dyno | B87: =INDEX(Public_Engine_Mods, 36, 3) -> Bridge Port, rotary engines | G87: =INDEX(Public_Exterior_Mods, 3, 2) -> 2 | H87: =INDEX(Public_Exterior_Mods, 3, 3) -> Non-Factory Trim/modified front splitter that extends more than 3.5 inches from front bumper skin leading edge, in addition to bumper/air dam/spoiler | M87: =INDEX(Public_Engine_Mods, 36, 4) -> FALSE | O87: =INDEX(Public_Exterior_Mods, 3, 4) -> FALSE
A88: =INDEX(Public_Engine_Mods, 37, 2) -> Dyno | B88: =INDEX(Public_Engine_Mods, 37, 3) -> Peripheral Port, rotary engines | M88: =INDEX(Public_Engine_Mods, 37, 4) -> FALSE
A89: =INDEX(Public_Engine_Mods, 38, 2) -> Dyno | B89: =INDEX(Public_Engine_Mods, 38, 3) -> Non-Factory Trim/modified Pistons, Rods | G89: =INDEX(Public_Exterior_Mods, 4, 2) -> 1 | H89: =INDEX(Public_Exterior_Mods, 4, 3) -> Non-Factory Trim/modified canards (each set assessed points front or rear) | M89: =INDEX(Public_Engine_Mods, 38, 4) -> FALSE | O89: =INDEX(Public_Exterior_Mods, 4, 4) -> FALSE
A90: =INDEX(Public_Engine_Mods, 39, 2) -> Dyno | B90: =INDEX(Public_Engine_Mods, 39, 3) -> Vehicles tuned and running ethanol content greater than 15%. (E.g. a vehicle tuned to run on e85) | G90: =INDEX(Public_Exterior_Mods, 5, 2) -> 1 | H90: =INDEX(Public_Exterior_Mods, 5, 3) -> Non-Factory Trim Rear spoiler or wing including any airfoil that in no way protrudes more than 6” from the mounting location of the spoiler or wing, does not exceed the height of the vehicle, and does not extend beyond the width of the rear quarter panels | M90: =INDEX(Public_Engine_Mods, 39, 4) -> FALSE | O90: =INDEX(Public_Exterior_Mods, 5, 4) -> FALSE
A91: =INDEX(Public_Engine_Mods, 40, 2) -> 0 | B91: =INDEX(Public_Engine_Mods, 40, 3) -> Any type of commercially available gasoline or diesel fuel | G91: =INDEX(Public_Exterior_Mods, 6, 2) -> 2 | H91: =INDEX(Public_Exterior_Mods, 6, 3) -> Non-Factory Trim Rear spoiler or wing including any airfoil that does not exceed the height of the vehicle, does not extend beyond the width of the rear quarter panels, and does not extend no more than 6" beyond the skin of the rear bumper | M91: =INDEX(Public_Engine_Mods, 40, 4) -> FALSE | O91: =INDEX(Public_Exterior_Mods, 6, 4) -> FALSE
A92: =INDEX(Public_Engine_Mods, 41, 2) -> 0 | B92: =INDEX(Public_Engine_Mods, 41, 3) -> Non-Factory Trim/modified fuses, relays, wiring, or addition of Power Distribution Modules | M92: =INDEX(Public_Engine_Mods, 41, 4) -> FALSE
A93: =INDEX(Public_Engine_Mods, 42, 2) -> 0 | B93: =INDEX(Public_Engine_Mods, 42, 3) -> Non-Factory Trim hoses, belts, clamps | G93: =INDEX(Public_Exterior_Mods, 7, 2) -> 3 | H93: =INDEX(Public_Exterior_Mods, 7, 3) -> Non-Factory Trim Rear spoiler or wing including any air foil of any size or shape | M93: =INDEX(Public_Engine_Mods, 42, 4) -> FALSE | O93: =INDEX(Public_Exterior_Mods, 7, 4) -> FALSE
A94: =INDEX(Public_Engine_Mods, 43, 2) -> 0 | B94: =INDEX(Public_Engine_Mods, 43, 3) -> Non-Factory Trim air or fuel filters | M94: =INDEX(Public_Engine_Mods, 43, 4) -> FALSE
B95: Brakes | G95: =INDEX(Public_Exterior_Mods, 8, 2) -> 1 | H95: =INDEX(Public_Exterior_Mods, 8, 3) -> Non-Factory Trim hardtop of different shape and size which alters airflow aft of the OEM rear glass (eg CWest Honda S2000 aero hardtop) | O95: =INDEX(Public_Exterior_Mods, 8, 4) -> FALSE
A96: =INDEX(Public_Brake_Mods, 1, 2) -> 1 | B96: =INDEX(Public_Brake_Mods, 1, 3) -> Non‐Factory Trim brake calipers, drums, and/or rotors of a different size ‐ front, rear or both | G96: =INDEX(Public_Exterior_Mods, 10, 2) -> 1 | H96: =INDEX(Public_Exterior_Mods, 10, 3) -> Non-Factory Trim/modified vortex generator to roof, hardtop, rear glass or trunk | M96: =INDEX(Public_Brake_Mods, 1, 4) -> FALSE | O96: =INDEX(Public_Exterior_Mods, 10, 4) -> FALSE
A97: =INDEX(Public_Brake_Mods, 2, 2) -> 2 | B97: =INDEX(Public_Brake_Mods, 2, 3) -> Non-Factory Trim/modified ABS (e.g. Bosch Motorsport ABS) | G97: =INDEX(Public_Exterior_Mods, 11, 2) -> 2 | H97: =INDEX(Public_Exterior_Mods, 11, 3) -> Non-Factory Trim/modified flat bottom | M97: =INDEX(Public_Brake_Mods, 2, 4) -> FALSE | O97: =INDEX(Public_Exterior_Mods, 11, 4) -> FALSE
A98: =INDEX(Public_Brake_Mods, 3, 2) -> -1 | B98: =INDEX(Public_Brake_Mods, 3, 3) -> Disabling any and all factory and/or aftermarket ABS or competing in a vehicle not originally equipped with ABS | G98: =INDEX(Public_Exterior_Mods, 12, 2) -> 2 | H98: =INDEX(Public_Exterior_Mods, 12, 3) -> Non-Factory Trim/modified rear diffuser | M98: =INDEX(Public_Brake_Mods, 3, 4) -> FALSE | O98: =INDEX(Public_Exterior_Mods, 12, 4) -> FALSE
G99: =INDEX(Public_Exterior_Mods, 13, 2) -> 1 | H99: =INDEX(Public_Exterior_Mods, 13, 3) -> Non-Factory Trim/modified side skirts | O99: =INDEX(Public_Exterior_Mods, 13, 4) -> FALSE
G100: =INDEX(Public_Exterior_Mods, 14, 2) -> 4 | H100: =INDEX(Public_Exterior_Mods, 14, 3) -> Non-factory trim Active aero, i.e. moveable aero devices; points assessed for each piece, in addition to assessment points listed above | O100: =INDEX(Public_Exterior_Mods, 14, 4) -> FALSE
